Workbook

Sheet 付款方案比較
B2: 付款方案比較
B3: 貸款金額
B4: NT$4,500,000.00 | C4: 方案 1 | D4: 方案 2 | E4: 方案 3
B5: 貸款年限 | C5: 20 | D5: 30 | E5: 20
B6: 付款頻率 | C6: 月繳 | D6: 月繳兩次 | E6: 月繳
B7: 年利率 | C7: 5.00% | D7: 5.00% | E7: 4.00%
B8: 分期付款額 | C8: =IFERROR(-PMT(S1Interest/VLOOKUP(S1PaymentFrequency,LoanLookup[],5,FALSE),S1LoanPeriod*VLOOKUP(S1PaymentFrequency,LoanLookup[],5,FALSE),ComparisonLoanAmount),"") -> NT$29,698 | D8: =IFERROR(-PMT(S2Interest/VLOOKUP(S2PaymentFrequency,LoanLookup[],5,FALSE),S2LoanPeriod*VLOOKUP(S2PaymentFrequency,LoanLookup[],5,FALSE),ComparisonLoanAmount),"") -> NT$12,073 | E8: =IFERROR(-PMT(S3Interest/VLOOKUP(S3PaymentFrequency,LoanLookup[],5,FALSE),S3LoanPeriod*VLOOKUP(S3PaymentFrequency,LoanLookup[],5,FALSE),ComparisonLoanAmount),"") -> NT$27,269
B9: 總付款次數 | C9: =IFERROR(S1LoanPeriod*VLOOKUP(S1PaymentFrequency,LoanLookup[],5,FALSE),"") -> 240 | D9: =IFERROR(S2LoanPeriod*VLOOKUP(S2PaymentFrequency,LoanLookup[],5,FALSE),"") -> 720 | E9: =IFERROR(S3LoanPeriod*VLOOKUP(S3PaymentFrequency,LoanLookup[],5,FALSE),"") -> 240
B10: 利息總額 | C10: =IFERROR((S1ScheduledPayment*S1TotalPayments)-ComparisonLoanAmount,"") -> NT$2,627,522 | D10: =IFERROR((S2ScheduledPayment*S2TotalPayments)-ComparisonLoanAmount,"") -> NT$4,192,613 | E10: =IFERROR((S3ScheduledPayment*S3TotalPayments)-ComparisonLoanAmount,"") -> NT$2,044,588
B11: 貸款成本 | C11: =IFERROR(ComparisonLoanAmount+S1TotalInterest,"") -> NT$7,127,522 | D11: =IFERROR(ComparisonLoanAmount+S2TotalInterest,"") -> NT$8,692,613 | E11: =IFERROR(ComparisonLoanAmount+S3TotalInterest,"") -> NT$6,544,588

Sheet 付款規劃表
B2: 付款規劃表 | L2: 方案 1
B3: 貸款方案 | G3: 貸款摘要
B4: 貸款起始日 | D4: 2014-06-10 | G4: 分期付款額 | I4: =IFERROR(IF(Values_Entered,-PMT(Interest_Rate/VLOOKUP(Interval,LoanLookup[],5,FALSE),Loan_Years*VLOOKUP(Interval,LoanLookup[],5,FALSE),Loan_Amount),""),"") -> NT$29,698.01
B5: 選擇性額外付款 | D5: NT$0.00 | G5: 分期付款次數 | I5: =IFERROR(IF(Values_Entered,Loan_Years*VLOOKUP(Interval,LoanLookup[],5,FALSE),""),"") -> 240
B6: 貸款金額 | D6: =ComparisonLoanAmount -> NT$4,500,000.00 | G6: 實際付款次數 | I6: =IFERROR(IF(Values_Entered,Number_of_Payments,""),"") -> 240
B7: 貸款年限 | D7: =IFERROR(HLOOKUP(Scenario,PaymentComparison,2,FALSE),0) -> 20 | G7: 提早付款總額 | I7: =IFERROR(IF(Values_Entered,SUMIF(Beg_Bal,">0",Extra_Pay),""),"") -> NT$3,000.00
B8: 付款頻率 | D8: =IFERROR(HLOOKUP(Scenario,PaymentComparison,3,FALSE),0) -> 月繳 | G8: 利息總額 | I8: =IFERROR(IF(Values_Entered,SUMIF(Beg_Bal,">0",Int),""),"") -> NT$2,622,417.83
B9: 年息 | D9: =IFERROR(HLOOKUP(Scenario,PaymentComparison,4,FALSE),0) -> 5.00% | G9: 貸款成本 | I9: =IFERROR(IF(Values_Entered,Scheduled_Monthly_Payment*Number_of_Payments,""),"") -> NT$7,127,521.98
B11: 付款編號 | C11: 付款日期 | D11: 期初餘額 | E11: 分期付款額 | F11: 額外付款 | H11: 付款總額 | I11: 本金 | J11: 利息 | K11: 期末餘額 | L11: 累計利息
B13: =IF(Values_Entered,1,"") -> 1 | C13: =IF(Pay_Num<>"",Loan_Start,"") -> 2014-06-10 | D13: =IF(Values_Entered,Loan_Amount,"") -> NT$4,500,000.00 | E13: =IF(Pay_Num<>"",Scheduled_Monthly_Payment,"") -> NT$29,698.01 | F13: NT$3,000.00 | H13: =IF(AND(Pay_Num<>"",Sched_Pay+Extra_Pay<Beg_Bal),Sched_Pay+Extra_Pay,IF(Pay_Num<>"",Beg_Bal,"")) -> NT$32,698.01 | I13: =IF(Pay_Num<>"",Total_Pay-Int,"") -> NT$13,948.01 | J13: =IF(Pay_Num<>"",Beg_Bal*(Interest_Rate/VLOOKUP(Interval,LoanLookup[],5,FALSE)),"") -> NT$18,750.00 | K13: =IF(AND(Pay_Num<>"",Sched_Pay+Extra_Pay<Beg_Bal),Beg_Bal-Princ,IF(Pay_Num<>"",0,"")) -> NT$4,486,051.99 | L13: =SUM($J$13:$J13) -> NT$18,750.00
B14: =IF(Values_Entered,B13+1,"") -> 2 | C14: =IF(Pay_Num<>"",DATE(YEAR(C13)+VLOOKUP(Interval,LoanLookup[],4,FALSE),MONTH(C13)+VLOOKUP(Interval,LoanLookup[],2,FALSE),DAY(C13)+VLOOKUP(Interval,LoanLookup[],3,FALSE)),"") -> 2014-07-10 | D14: =IF(Pay_Num<>"",K13,"") -> 4486051.99 | E14: =IF(Pay_Num<>"",Scheduled_Monthly_Payment,"") -> NT$29,698.01 | H14: 29698.01 | I14: =IF(Pay_Num<>"",Total_Pay-Int,"") -> 11006.12 | J14: =IF(Pay_Num<>"",Beg_Bal*(Interest_Rate/VLOOKUP(Interval,LoanLookup[],5,FALSE)),"") -> NT$18,691.88 | K14: 4475045.87 | L14: =SUM($J$13:$J14) -> 37441.88
B15: 3 | C15: =IF(Pay_Num<>"",DATE(YEAR(C14)+VLOOKUP(Interval,LoanLookup[],4,FALSE),MONTH(C14)+VLOOKUP(Interval,LoanLookup[],2,FALSE),DAY(C14)+VLOOKUP(Interval,LoanLookup[],3,FALSE)),"") -> 2014-08-10 | D15: 4475045.87 | E15: =IF(Pay_Num<>"",Scheduled_Monthly_Payment,"") -> NT$29,698.01 | H15: 29698.01 | I15: 11051.98 | J15: =IF(Pay_Num<>"",Beg_Bal*(Interest_Rate/VLOOKUP(Interval,LoanLookup[],5,FALSE)),"") -> NT$18,646.02 | K15: 4463993.88 | L15: =SUM($J$13:$J15) -> 56087.91
B16: 4 | C16: =IF(Pay_Num<>"",DATE(YEAR(C15)+VLOOKUP(Interval,LoanLookup[],4,FALSE),MONTH(C15)+VLOOKUP(Interval,LoanLookup[],2,FALSE),DAY(C15)+VLOOKUP(Interval,LoanLookup[],3,FALSE)),"") -> 2014-09-10 | D16: 4463993.88 | E16: =IF(Pay_Num<>"",Scheduled_Monthly_Payment,"") -> NT$29,698.01 | H16: 29698.01 | I16: 11098.03 | J16: =IF(Pay_Num<>"",Beg_Bal*(Interest_Rate/VLOOKUP(Interval,LoanLookup[],5,FALSE)),"") -> NT$18,599.97 | K16: 4452895.85 | L16: =SUM($J$13:$J16) -> 74687.88
B17: 5 | C17: =IF(Pay_Num<>"",DATE(YEAR(C16)+VLOOKUP(Interval,LoanLookup[],4,FALSE),MONTH(C16)+VLOOKUP(Interval,LoanLookup[],2,FALSE),DAY(C16)+VLOOKUP(Interval,LoanLookup[],3,FALSE)),"") -> 2014-10-10 | D17: 4452895.85 | E17: NT$29,698.01 | H17: 29698.01 | I17: 11144.28 | J17: =IF(Pay_Num<>"",Beg_Bal*(Interest_Rate/VLOOKUP(Interval,LoanLookup[],5,FALSE)),"") -> NT$18,553.73 | K17: 4441751.57 | L17: =SUM($J$13:$J17) -> 93241.61
B18: 6 | C18: =IF(Pay_Num<>"",DATE(YEAR(C17)+VLOOKUP(Interval,LoanLookup[],4,FALSE),MONTH(C17)+VLOOKUP(Interval,LoanLookup[],2,FALSE),DAY(C17)+VLOOKUP(Interval,LoanLookup[],3,FALSE)),"") -> 2014-11-10 | D18: 4441751.57 | E18: NT$29,698.01 | H18: 29698.01 | I18: 11190.71 | J18: =IF(Pay_Num<>"",Beg_Bal*(Interest_Rate/VLOOKUP(Interval,LoanLookup[],5,FALSE)),"") -> NT$18,507.30 | K18: 4430560.86 | L18: =SUM($J$13:$J18) -> 111748.91
B19: 7 | C19: =IF(Pay_Num<>"",DATE(YEAR(C18)+VLOOKUP(Interval,LoanLookup[],4,FALSE),MONTH(C18)+VLOOKUP(Interval,LoanLookup[],2,FALSE),DAY(C18)+VLOOKUP(Interval,LoanLookup[],3,FALSE)),"") -> 2014-12-10 | D19: 4430560.86 | E19: NT$29,698.01 | H19: 29698.01 | I19: 11237.34 | J19: =IF(Pay_Num<>"",Beg_Bal*(Interest_Rate/VLOOKUP(Interval,LoanLookup[],5,FALSE)),"") -> NT$18,460.67 | K19: 4419323.53 | L19: =SUM($J$13:$J19) -> 130209.58
B20: 8 | C20: =IF(Pay_Num<>"",DATE(YEAR(C19)+VLOOKUP(Interval,LoanLookup[],4,FALSE),MONTH(C19)+VLOOKUP(Interval,LoanLookup[],2,FALSE),DAY(C19)+VLOOKUP(Interval,LoanLookup[],3,FALSE)),"") -> 2015-01-10 | D20: 4419323.53 | E20: NT$29,698.01 | H20: 29698.01 | I20: 11284.16 | J20: =IF(Pay_Num<>"",Beg_Bal*(Interest_Rate/VLOOKUP(Interval,LoanLookup[],5,FALSE)),"") -> NT$18,413.85 | K20: 4408039.37 | L20: =SUM($J$13:$J20) -> 148623.43
B21: 9 | C21: =IF(Pay_Num<>"",DATE(YEAR(C20)+VLOOKUP(Interval,LoanLookup[],4,FALSE),MONTH(C20)+VLOOKUP(Interval,LoanLookup[],2,FALSE),DAY(C20)+VLOOKUP(Interval,LoanLookup[],3,FALSE)),"") -> 2015-02-10 | D21: 4408039.37 | E21: NT$29,698.01 | H21: 29698.01 | I21: 11331.18 | J21: =IF(Pay_Num<>"",Beg_Bal*(Interest_Rate/VLOOKUP(Interval,LoanLookup[],5,FALSE)),"") -> NT$18,366.83 | K21: 4396708.19 | L21: =SUM($J$13:$J21) -> 166990.26
B22: 10 | C22: =IF(Pay_Num<>"",DATE(YEAR(C21)+VLOOKUP(Interval,LoanLookup[],4,FALSE),MONTH(C21)+VLOOKUP(Interval,LoanLookup[],2,FALSE),DAY(C21)+VLOOKUP(Interval,LoanLookup[],3,FALSE)),"") -> 2015-03-10 | D22: 4396708.19 | E22: NT$29,698.01 | H22: 29698.01 | I22: 11378.39 | J22: =IF(Pay_Num<>"",Beg_Bal*(Interest_Rate/VLOOKUP(Interval,LoanLookup[],5,FALSE)),"") -> NT$18,319.62 | K22: 4385329.80 | L22: =SUM($J$13:$J22) -> 185309.88
B23: 11 | C23: =IF(Pay_Num<>"",DATE(YEAR(C22)+VLOOKUP(Interval,LoanLookup[],4,FALSE),MONTH(C22)+VLOOKUP(Interval,LoanLookup[],2,FALSE),DAY(C22)+VLOOKUP(Interval,LoanLookup[],3,FALSE)),"") -> 2015-04-10 | D23: 4385329.80 | E23: NT$29,698.01 | H23: 29698.01 | I23: 11425.80 | J23: =IF(Pay_Num<>"",Beg_Bal*(Interest_Rate/VLOOKUP(Interval,LoanLookup[],5,FALSE)),"") -> NT$18,272.21 | K23: 4373904.00 | L23: =SUM($J$13:$J23) -> 203582.09
B24: 12 | C24: =IF(Pay_Num<>"",DATE(YEAR(C23)+VLOOKUP(Interval,LoanLookup[],4,FALSE),MONTH(C23)+VLOOKUP(Interval,LoanLookup[],2,FALSE),DAY(C23)+VLOOKUP(Interval,LoanLookup[],3,FALSE)),"") -> 2015-05-10 | D24: 4373904.00 | E24: NT$29,698.01 | H24: 29698.01 | I24: 11473.41 | J24: =IF(Pay_Num<>"",Beg_Bal*(Interest_Rate/VLOOKUP(Interval,LoanLookup[],5,FALSE)),"") -> NT$18,224.60 | K24: 4362430.59 | L24: =SUM($J$13:$J24) -> 221806.69
B25: 13 | C25: =IF(Pay_Num<>"",DATE(YEAR(C24)+VLOOKUP(Interval,LoanLookup[],4,FALSE),MONTH(C24)+VLOOKUP(Interval,LoanLookup[],2,FALSE),DAY(C24)+VLOOKUP(Interval,LoanLookup[],3,FALSE)),"") -> 2015-06-10 | D25: 4362430.59 | E25: NT$29,698.01 | H25: 29698.01 | I25: 11521.21 | J25: =IF(Pay_Num<>"",Beg_Bal*(Interest_Rate/VLOOKUP(Interval,LoanLookup[],5,FALSE)),"") -> NT$18,176.79 | K25: 4350909.37 | L25: =SUM($J$13:$J25) -> 239983.48
B26: 14 | C26: =IF(Pay_Num<>"",DATE(YEAR(C25)+VLOOKUP(Interval,LoanLookup[],4,FALSE),MONTH(C25)+VLOOKUP(Interval,LoanLookup[],2,FALSE),DAY(C25)+VLOOKUP(Interval,LoanLookup[],3,FALSE)),"") -> 2015-07-10 | D26: 4350909.37 | E26: NT$29,698.01 | H26: 29698.01 | I26: 11569.22 | J26: =IF(Pay_Num<>"",Beg_Bal*(Interest_Rate/VLOOKUP(Interval,LoanLookup[],5,FALSE)),"") -> NT$18,128.79 | K26: 4339340.15 | L26: =SUM($J$13:$J26) -> 258112.27
B27: 15 | C27: =IF(Pay_Num<>"",DATE(YEAR(C26)+VLOOKUP(Interval,LoanLookup[],4,FALSE),MONTH(C26)+VLOOKUP(Interval,LoanLookup[],2,FALSE),DAY(C26)+VLOOKUP(Interval,LoanLookup[],3,FALSE)),"") -> 2015-08-10 | D27: 4339340.15 | E27: NT$29,698.01 | H27: 29698.01 | I27: 11617.42 | J27: =IF(Pay_Num<>"",Beg_Bal*(Interest_Rate/VLOOKUP(Interval,LoanLookup[],5,FALSE)),"") -> NT$18,080.58 | K27: 4327722.73 | L27: =SUM($J$13:$J27) -> 276192.85
B28: 16 | C28: =IF(Pay_Num<>"",DATE(YEAR(C27)+VLOOKUP(Interval,LoanLookup[],4,FALSE),MONTH(C27)+VLOOKUP(Interval,LoanLookup[],2,FALSE),DAY(C27)+VLOOKUP(Interval,LoanLookup[],3,FALSE)),"") -> 2015-09-10 | D28: 4327722.73 | E28: NT$29,698.01 | H28: 29698.01 | I28: 11665.83 | J28: =IF(Pay_Num<>"",Beg_Bal*(Interest_Rate/VLOOKUP(Interval,LoanLookup[],5,FALSE)),"") -> NT$18,032.18 | K28: 4316056.90 | L28: =SUM($J$13:$J28) -> 294225.03
B29: 17 | C29: =IF(Pay_Num<>"",DATE(YEAR(C28)+VLOOKUP(Interval,LoanLookup[],4,FALSE),MONTH(C28)+VLOOKUP(Interval,LoanLookup[],2,FALSE),DAY(C28)+VLOOKUP(Interval,LoanLookup[],3,FALSE)),"") -> 2015-10-10 | D29: 4316056.90 | E29: NT$29,698.01 | H29: 29698.01 | I29: 11714.44 | J29: =IF(Pay_Num<>"",Beg_Bal*(Interest_Rate/VLOOKUP(Interval,LoanLookup[],5,FALSE)),"") -> NT$17,983.57 | K29: 4304342.46 | L29: =SUM($J$13:$J29) -> 312208.60
B30: 18 | C30: =IF(Pay_Num<>"",DATE(YEAR(C29)+VLOOKUP(Interval,LoanLookup[],4,FALSE),MONTH(C29)+VLOOKUP(Interval,LoanLookup[],2,FALSE),DAY(C29)+VLOOKUP(Interval,LoanLookup[],3,FALSE)),"") -> 2015-11-10 | D30: 4304342.46 | E30: NT$29,698.01 | H30: 29698.01 | I30: 11763.25 | J30: =IF(Pay_Num<>"",Beg_Bal*(Interest_Rate/VLOOKUP(Interval,LoanLookup[],5,FALSE)),"") -> NT$17,934.76 | K30: 4292579.21 | L30: =SUM($J$13:$J30) -> 330143.36
B31: 19 | C31: =IF(Pay_Num<>"",DATE(YEAR(C30)+VLOOKUP(Interval,LoanLookup[],4,FALSE),MONTH(C30)+VLOOKUP(Interval,LoanLookup[],2,FALSE),DAY(C30)+VLOOKUP(Interval,LoanLookup[],3,FALSE)),"") -> 2015-12-10 | D31: 4292579.21 | E31: NT$29,698.01 | H31: 29698.01 | I31: 11812.26 | J31: =IF(Pay_Num<>"",Beg_Bal*(Interest_Rate/VLOOKUP(Interval,LoanLookup[],5,FALSE)),"") -> NT$17,885.75 | K31: 4280766.95 | L31: =SUM($J$13:$J31) -> 348029.11
B32: 20 | C32: =IF(Pay_Num<>"",DATE(YEAR(C31)+VLOOKUP(Interval,LoanLookup[],4,FALSE),MONTH(C31)+VLOOKUP(Interval,LoanLookup[],2,FALSE),DAY(C31)+VLOOKUP(Interval,LoanLookup[],3,FALSE)),"") -> 2016-01-10 | D32: 4280766.95 | E32: NT$29,698.01 | H32: 29698.01 | I32: 11861.48 | J32: =IF(Pay_Num<>"",Beg_Bal*(Interest_Rate/VLOOKUP(Interval,LoanLookup[],5,FALSE)),"") -> NT$17,836.53 | K32: 4268905.47 | L32: =SUM($J$13:$J32) -> 365865.64
B33: 21 | C33: =IF(Pay_Num<>"",DATE(YEAR(C32)+VLOOKUP(Interval,LoanLookup[],4,FALSE),MONTH(C32)+VLOOKUP(Interval,LoanLookup[],2,FALSE),DAY(C32)+VLOOKUP(Interval,LoanLookup[],3,FALSE)),"") -> 2016-02-10 | D33: 4268905.47 | E33: NT$29,698.01 | H33: 29698.01 | I33: 11910.90 | J33: =IF(Pay_Num<>"",Beg_Bal*(Interest_Rate/VLOOKUP(Interval,LoanLookup[],5,FALSE)),"") -> NT$17,787.11 | K33: 4256994.57 | L33: =SUM($J$13:$J33) -> 383652.74
B34: 22 | C34: =IF(Pay_Num<>"",DATE(YEAR(C33)+VLOOKUP(Interval,LoanLookup[],4,FALSE),MONTH(C33)+VLOOKUP(Interval,LoanLookup[],2,FALSE),DAY(C33)+VLOOKUP(Interval,LoanLookup[],3,FALSE)),"") -> 2016-03-10 | D34: 4256994.57 | E34: NT$29,698.01 | H34: 29698.01 | I34: 11960.53 | J34: =IF(Pay_Num<>"",Beg_Bal*(Interest_Rate/VLOOKUP(Interval,LoanLookup[],5,FALSE)),"") -> NT$17,737.48 | K34: 4245034.04 | L34: =SUM($J$13:$J34) -> 401390.22
B35: 23 | C35: =IF(Pay_Num<>"",DATE(YEAR(C34)+VLOOKUP(Interval,LoanLookup[],4,FALSE),MONTH(C34)+VLOOKUP(Interval,LoanLookup[],2,FALSE),DAY(C34)+VLOOKUP(Interval,LoanLookup[],3,FALSE)),"") -> 2016-04-10 | D35: 4245034.04 | E35: NT$29,698.01 | H35: 29698.01 | I35: 12010.37 | J35: =IF(Pay_Num<>"",Beg_Bal*(Interest_Rate/VLOOKUP(Interval,LoanLookup[],5,FALSE)),"") -> NT$17,687.64 | K35: 4233023.67 | L35: =SUM($J$13:$J35) -> 419077.86
B36: 24 | C36: =IF(Pay_Num<>"",DATE(YEAR(C35)+VLOOKUP(Interval,LoanLookup[],4,FALSE),MONTH(C35)+VLOOKUP(Interval,LoanLookup[],2,FALSE),DAY(C35)+VLOOKUP(Interval,LoanLookup[],3,FALSE)),"") -> 2016-05-10 | D36: 4233023.67 | E36: NT$29,698.01 | H36: 29698.01 | I36: 12060.41 | J36: =IF(Pay_Num<>"",Beg_Bal*(Interest_Rate/VLOOKUP(Interval,LoanLookup[],5,FALSE)),"") -> NT$17,637.60 | K36: 4220963.26 | L36: =SUM($J$13:$J36) -> 436715.46
B37: 25 | C37: =IF(Pay_Num<>"",DATE(YEAR(C36)+VLOOKUP(Interval,LoanLookup[],4,FALSE),MONTH(C36)+VLOOKUP(Interval,LoanLookup[],2,FALSE),DAY(C36)+VLOOKUP(Interval,LoanLookup[],3,FALSE)),"") -> 2016-06-10 | D37: 4220963.26 | E37: NT$29,698.01 | H37: 29698.01 | I37: 12110.66 | J37: =IF(Pay_Num<>"",Beg_Bal*(Interest_Rate/VLOOKUP(Interval,LoanLookup[],5,FALSE)),"") -> NT$17,587.35 | K37: 4208852.60 | L37: =SUM($J$13:$J37) -> 454302.81
B38: 26 | C38: =IF(Pay_Num<>"",DATE(YEAR(C37)+VLOOKUP(Interval,LoanLookup[],4,FALSE),MONTH(C37)+VLOOKUP(Interval,LoanLookup[],2,FALSE),DAY(C37)+VLOOKUP(Interval,LoanLookup[],3,FALSE)),"") -> 2016-07-10 | D38: 4208852.60 | E38: NT$29,698.01 | H38: 29698.01 | I38: 12161.12 | J38: =IF(Pay_Num<>"",Beg_Bal*(Interest_Rate/VLOOKUP(Interval,LoanLookup[],5,FALSE)),"") -> NT$17,536.89 | K38: 4196691.48 | L38: =SUM($J$13:$J38) -> 471839.70
B39: 27 | C39: =IF(Pay_Num<>"",DATE(YEAR(C38)+VLOOKUP(Interval,LoanLookup[],4,FALSE),MONTH(C38)+VLOOKUP(Interval,LoanLookup[],2,FALSE),DAY(C38)+VLOOKUP(Interval,LoanLookup[],3,FALSE)),"") -> 2016-08-10 | D39: 4196691.48 | E39: NT$29,698.01 | H39: 29698.01 | I39: 12211.79 | J39: =IF(Pay_Num<>"",Beg_Bal*(Interest_Rate/VLOOKUP(Interval,LoanLookup[],5,FALSE)),"") -> NT$17,486.21 | K39: 4184479.69 | L39: =SUM($J$13:$J39) -> 489325.91
B40: 28 | C40: =IF(Pay_Num<>"",DATE(YEAR(C39)+VLOOKUP(Interval,LoanLookup[],4,FALSE),MONTH(C39)+VLOOKUP(Interval,LoanLookup[],2,FALSE),DAY(C39)+VLOOKUP(Interval,LoanLookup[],3,FALSE)),"") -> 2016-09-10 | D40: 4184479.69 | E40: NT$29,698.01 | H40: 29698.01 | I40: 12262.68 | J40: =IF(Pay_Num<>"",Beg_Bal*(Interest_Rate/VLOOKUP(Interval,LoanLookup[],5,FALSE)),"") -> NT$17,435.33 | K40: 4172217.01 | L40: =SUM($J$13:$J40) -> 506761.24
B41: 29 | C41: =IF(Pay_Num<>"",DATE(YEAR(C40)+VLOOKUP(Interval,LoanLookup[],4,FALSE),MONTH(C40)+VLOOKUP(Interval,LoanLookup[],2,FALSE),DAY(C40)+VLOOKUP(Interval,LoanLookup[],3,FALSE)),"") -> 2016-10-10 | D41: 4172217.01 | E41: NT$29,698.01 | H41: 29698.01 | I41: 12313.77 | J41: =IF(Pay_Num<>"",Beg_Bal*(Interest_Rate/VLOOKUP(Interval,LoanLookup[],5,FALSE)),"") -> NT$17,384.24 | K41: 4159903.24 | L41: =SUM($J$13:$J41) -> 524145.48
B42: 30 | C42: =IF(Pay_Num<>"",DATE(YEAR(C41)+VLOOKUP(Interval,LoanLookup[],4,FALSE),MONTH(C41)+VLOOKUP(Interval,LoanLookup[],2,FALSE),DAY(C41)+VLOOKUP(Interval,LoanLookup[],3,FALSE)),"") -> 2016-11-10 | D42: 4159903.24 | E42: NT$29,698.01 | H42: 29698.01 | I42: 12365.08 | J42: =IF(Pay_Num<>"",Beg_Bal*(Interest_Rate/VLOOKUP(Interval,LoanLookup[],5,FALSE)),"") -> NT$17,332.93 | K42: 4147538.16 | L42: =SUM($J$13:$J42) -> 541478.41
B43: 31 | C43: =IF(Pay_Num<>"",DATE(YEAR(C42)+VLOOKUP(Interval,LoanLookup[],4,FALSE),MONTH(C42)+VLOOKUP(Interval,LoanLookup[],2,FALSE),DAY(C42)+VLOOKUP(Interval,LoanLookup[],3,FALSE)),"") -> 2016-12-10 | D43: 4147538.16 | E43: NT$29,698.01 | H43: 29698.01 | I43: 12416.60 | J43: =IF(Pay_Num<>"",Beg_Bal*(Interest_Rate/VLOOKUP(Interval,LoanLookup[],5,FALSE)),"") -> NT$17,281.41 | K43: 4135121.56 | L43: =SUM($J$13:$J43) -> 558759.82
B44: 32 | C44: =IF(Pay_Num<>"",DATE(YEAR(C43)+VLOOKUP(Interval,LoanLookup[],4,FALSE),MONTH(C43)+VLOOKUP(Interval,LoanLookup[],2,FALSE),DAY(C43)+VLOOKUP(Interval,LoanLookup[],3,FALSE)),"") -> 2017-01-10 | D44: 4135121.56 | E44: NT$29,698.01 | H44: 29698.01 | I44: 12468.34 | J44: =IF(Pay_Num<>"",Beg_Bal*(Interest_Rate/VLOOKUP(Interval,LoanLookup[],5,FALSE)),"") -> NT$17,229.67 | K44: 4122653.23 | L44: =SUM($J$13:$J44) -> 575989.49
B45: 33 | C45: =IF(Pay_Num<>"",DATE(YEAR(C44)+VLOOKUP(Interval,LoanLookup[],4,FALSE),MONTH(C44)+VLOOKUP(Interval,LoanLookup[],2,FALSE),DAY(C44)+VLOOKUP(Interval,LoanLookup[],3,FALSE)),"") -> 2017-02-10 | D45: 4122653.23 | E45: NT$29,698.01 | H45: 29698.01 | I45: 12520.29 | J45: =IF(Pay_Num<>"",Beg_Bal*(Interest_Rate/VLOOKUP(Interval,LoanLookup[],5,FALSE)),"") -> NT$17,177.72 | K45: 4110132.94 | L45: =SUM($J$13:$J45) -> 593167.21
B46: 34 | C46: =IF(Pay_Num<>"",DATE(YEAR(C45)+VLOOKUP(Interval,LoanLookup[],4,FALSE),MONTH(C45)+VLOOKUP(Interval,LoanLookup[],2,FALSE),DAY(C45)+VLOOKUP(Interval,LoanLookup[],3,FALSE)),"") -> 2017-03-10 | D46: 4110132.94 | E46: NT$29,698.01 | H46: 29698.01 | I46: 12572.45 | J46: =IF(Pay_Num<>"",Beg_Bal*(Interest_Rate/VLOOKUP(Interval,LoanLookup[],5,FALSE)),"") -> NT$17,125.55 | K46: 4097560.49 | L46: =SUM($J$13:$J46) -> 610292.77
B47: 35 | C47: =IF(Pay_Num<>"",DATE(YEAR(C46)+VLOOKUP(Interval,LoanLookup[],4,FALSE),MONTH(C46)+VLOOKUP(Interval,LoanLookup[],2,FALSE),DAY(C46)+VLOOKUP(Interval,LoanLookup[],3,FALSE)),"") -> 2017-04-10 | D47: 4097560.49 | E47: NT$29,698.01 | H47: 29698.01 | I47: 12624.84 | J47: =IF(Pay_Num<>"",Beg_Bal*(Interest_Rate/VLOOKUP(Interval,LoanLookup[],5,FALSE)),"") -> NT$17,073.17 | K47: 4084935.65 | L47: =SUM($J$13:$J47) -> 627365.94
B48: 36 | C48: =IF(Pay_Num<>"",DATE(YEAR(C47)+VLOOKUP(Interval,LoanLookup[],4,FALSE),MONTH(C47)+VLOOKUP(Interval,LoanLookup[],2,FALSE),DAY(C47)+VLOOKUP(Interval,LoanLookup[],3,FALSE)),"") -> 2017-05-10 | D48: 4084935.65 | E48: NT$29,698.01 | H48: 29698.01 | I48: 12677.44 | J48: =IF(Pay_Num<>"",Beg_Bal*(Interest_Rate/VLOOKUP(Interval,LoanLookup[],5,FALSE)),"") -> NT$17,020.57 | K48: 4072258.20 | L48: =SUM($J$13:$J48) -> 644386.50
B49: 37 | C49: =IF(Pay_Num<>"",DATE(YEAR(C48)+VLOOKUP(Interval,LoanLookup[],4,FALSE),MONTH(C48)+VLOOKUP(Interval,LoanLookup[],2,FALSE),DAY(C48)+VLOOKUP(Interval,LoanLookup[],3,FALSE)),"") -> 2017-06-10 | D49: 4072258.20 | E49: NT$29,698.01 | H49: 29698.01 | I49: 12730.27 | J49: =IF(Pay_Num<>"",Beg_Bal*(Interest_Rate/VLOOKUP(Interval,LoanLookup[],5,FALSE)),"") -> NT$16,967.74 | K49: 4059527.94 | L49: =SUM($J$13:$J49) -> 661354.24
B50: 38 | C50: =IF(Pay_Num<>"",DATE(YEAR(C49)+VLOOKUP(Interval,LoanLookup[],4,FALSE),MONTH(C49)+VLOOKUP(Interval,LoanLookup[],2,FALSE),DAY(C49)+VLOOKUP(Interval,LoanLookup[],3,FALSE)),"") -> 2017-07-10 | D50: 4059527.94 | E50: NT$29,698.01 | H50: 29698.01 | I50: 12783.31 | J50: =IF(Pay_Num<>"",Beg_Bal*(Interest_Rate/VLOOKUP(Interval,LoanLookup[],5,FALSE)),"") -> NT$16,914.70 | K50: 4046744.63 | L50: =SUM($J$13:$J50) -> 678268.94
B51: 39 | C51: =IF(Pay_Num<>"",DATE(YEAR(C50)+VLOOKUP(Interval,LoanLookup[],4,FALSE),MONTH(C50)+VLOOKUP(Interval,LoanLookup[],2,FALSE),DAY(C50)+VLOOKUP(Interval,LoanLookup[],3,FALSE)),"") -> 2017-08-10 | D51: 4046744.63 | E51: NT$29,698.01 | H51: 29698.01 | I51: 12836.57 | J51: =IF(Pay_Num<>"",Beg_Bal*(Interest_Rate/VLOOKUP(Interval,LoanLookup[],5,FALSE)),"") -> NT$16,861.44 | K51: 4033908.06 | L51: =SUM($J$13:$J51) -> 695130.38
B52: 40 | C52: =IF(Pay_Num<>"",DATE(YEAR(C51)+VLOOKUP(Interval,LoanLookup[],4,FALSE),MONTH(C51)+VLOOKUP(Interval,LoanLookup[],2,FALSE),DAY(C51)+VLOOKUP(Interval,LoanLookup[],3,FALSE)),"") -> 2017-09-10 | D52: 4033908.06 | E52: NT$29,698.01 | H52: 29698.01 | I52: 12890.06 | J52: =IF(Pay_Num<>"",Beg_Bal*(Interest_Rate/VLOOKUP(Interval,LoanLookup[],5,FALSE)),"") -> NT$16,807.95 | K52: 4021018.00 | L52: =SUM($J$13:$J52) -> 711938.33
B53: 41 | C53: =IF(Pay_Num<>"",DATE(YEAR(C52)+VLOOKUP(Interval,LoanLookup[],4,FALSE),MONTH(C52)+VLOOKUP(Interval,LoanLookup[],2,FALSE),DAY(C52)+VLOOKUP(Interval,LoanLookup[],3,FALSE)),"") -> 2017-10-10 | D53: 4021018.00 | E53: NT$29,698.01 | H53: 29698.01 | I53: 12943.77 | J53: =IF(Pay_Num<>"",Beg_Bal*(Interest_Rate/VLOOKUP(Interval,LoanLookup[],5,FALSE)),"") -> NT$16,754.24 | K53: 4008074.23 | L53: =SUM($J$13:$J53) -> 728692.57
B54: 42 | C54: =IF(Pay_Num<>"",DATE(YEAR(C53)+VLOOKUP(Interval,LoanLookup[],4,FALSE),MONTH(C53)+VLOOKUP(Interval,LoanLookup[],2,FALSE),DAY(C53)+VLOOKUP(Interval,LoanLookup[],3,FALSE)),"") -> 2017-11-10 | D54: 4008074.23 | E54: NT$29,698.01 | H54: 29698.01 | I54: 12997.70 | J54: =IF(Pay_Num<>"",Beg_Bal*(Interest_Rate/VLOOKUP(Interval,LoanLookup[],5,FALSE)),"") -> NT$16,700.31 | K54: 3995076.53 | L54: =SUM($J$13:$J54) -> 745392.88
B55: 43 | C55: =IF(Pay_Num<>"",DATE(YEAR(C54)+VLOOKUP(Interval,LoanLookup[],4,FALSE),MONTH(C54)+VLOOKUP(Interval,LoanLookup[],2,FALSE),DAY(C54)+VLOOKUP(Interval,LoanLookup[],3,FALSE)),"") -> 2017-12-10 | D55: 3995076.53 | E55: NT$29,698.01 | H55: 29698.01 | I55: 13051.86 | J55: =IF(Pay_Num<>"",Beg_Bal*(Interest_Rate/VLOOKUP(Interval,LoanLookup[],5,FALSE)),"") -> NT$16,646.15 | K55: 3982024.68 | L55: =SUM($J$13:$J55) -> 762039.03
B56: 44 | C56: =IF(Pay_Num<>"",DATE(YEAR(C55)+VLOOKUP(Interval,LoanLookup[],4,FALSE),MONTH(C55)+VLOOKUP(Interval,LoanLookup[],2,FALSE),DAY(C55)+VLOOKUP(Interval,LoanLookup[],3,FALSE)),"") -> 2018-01-10 | D56: 3982024.68 | E56: NT$29,698.01 | H56: 29698.01 | I56: 13106.24 | J56: =IF(Pay_Num<>"",Beg_Bal*(Interest_Rate/VLOOKUP(Interval,LoanLookup[],5,FALSE)),"") -> NT$16,591.77 | K56: 3968918.44 | L56: =SUM($J$13:$J56) -> 778630.80
B57: 45 | C57: =IF(Pay_Num<>"",DATE(YEAR(C56)+VLOOKUP(Interval,LoanLookup[],4,FALSE),MONTH(C56)+VLOOKUP(Interval,LoanLookup[],2,FALSE),DAY(C56)+VLOOKUP(Interval,LoanLookup[],3,FALSE)),"") -> 2018-02-10 | D57: 3968918.44 | E57: NT$29,698.01 | H57: 29698.01 | I57: 13160.85 | J57: =IF(Pay_Num<>"",Beg_Bal*(Interest_Rate/VLOOKUP(Interval,LoanLookup[],5,FALSE)),"") -> NT$16,537.16 | K57: 3955757.59 | L57: =SUM($J$13:$J57) -> 795167.96
B58: 46 | C58: =IF(Pay_Num<>"",DATE(YEAR(C57)+VLOOKUP(Interval,LoanLookup[],4,FALSE),MONTH(C57)+VLOOKUP(Interval,LoanLookup[],2,FALSE),DAY(C57)+VLOOKUP(Interval,LoanLookup[],3,FALSE)),"") -> 2018-03-10 | D58: 3955757.59 | E58: NT$29,698.01 | H58: 29698.01 | I58: 13215.68 | J58: =IF(Pay_Num<>"",Beg_Bal*(Interest_Rate/VLOOKUP(Interval,LoanLookup[],5,FALSE)),"") -> NT$16,482.32 | K58: 3942541.91 | L58: =SUM($J$13:$J58) -> 811650.29
B59: 47 | C59: =IF(Pay_Num<>"",DATE(YEAR(C58)+VLOOKUP(Interval,LoanLookup[],4,FALSE),MONTH(C58)+VLOOKUP(Interval,LoanLookup[],2,FALSE),DAY(C58)+VLOOKUP(Interval,LoanLookup[],3,FALSE)),"") -> 2018-04-10 | D59: 3942541.91 | E59: NT$29,698.01 | H59: 29698.01 | I59: 13270.75 | J59: =IF(Pay_Num<>"",Beg_Bal*(Interest_Rate/VLOOKUP(Interval,LoanLookup[],5,FALSE)),"") -> NT$16,427.26 | K59: 3929271.16 | L59: =SUM($J$13:$J59) -> 828077.54
B60: 48 | C60: =IF(Pay_Num<>"",DATE(YEAR(C59)+VLOOKUP(Interval,LoanLookup[],4,FALSE),MONTH(C59)+VLOOKUP(Interval,LoanLookup[],2,FALSE),DAY(C59)+VLOOKUP(Interval,LoanLookup[],3,FALSE)),"") -> 2018-05-10 | D60: 3929271.16 | E60: NT$29,698.01 | H60: 29698.01 | I60: 13326.05 | J60: =IF(Pay_Num<>"",Beg_Bal*(Interest_Rate/VLOOKUP(Interval,LoanLookup[],5,FALSE)),"") -> NT$16,371.96 | K60: 3915945.11 | L60: =SUM($J$13:$J60) -> 844449.51
B61: 49 | C61: =IF(Pay_Num<>"",DATE(YEAR(C60)+VLOOKUP(Interval,LoanLookup[],4,FALSE),MONTH(C60)+VLOOKUP(Interval,LoanLookup[],2,FALSE),DAY(C60)+VLOOKUP(Interval,LoanLookup[],3,FALSE)),"") -> 2018-06-10 | D61: 3915945.11 | E61: NT$29,698.01 | H61: 29698.01 | I61: 13381.57 | J61: =IF(Pay_Num<>"",Beg_Bal*(Interest_Rate/VLOOKUP(Interval,LoanLookup[],5,FALSE)),"") -> NT$16,316.44 | K61: 3902563.54 | L61: =SUM($J$13:$J61) -> 860765.95
B62: 50 | C62: =IF(Pay_Num<>"",DATE(YEAR(C61)+VLOOKUP(Interval,LoanLookup[],4,FALSE),MONTH(C61)+VLOOKUP(Interval,LoanLookup[],2,FALSE),DAY(C61)+VLOOKUP(Interval,LoanLookup[],3,FALSE)),"") -> 2018-07-10 | D62: 3902563.54 | E62: NT$29,698.01 | H62: 29698.01 | I62: 13437.33 | J62: =IF(Pay_Num<>"",Beg_Bal*(Interest_Rate/VLOOKUP(Interval,LoanLookup[],5,FALSE)),"") -> NT$16,260.68 | K62: 3889126.21 | L62: =SUM($J$13:$J62) -> 877026.63
B63: 51 | C63: =IF(Pay_Num<>"",DATE(YEAR(C62)+VLOOKUP(Interval,LoanLookup[],4,FALSE),MONTH(C62)+VLOOKUP(Interval,LoanLookup[],2,FALSE),DAY(C62)+VLOOKUP(Interval,LoanLookup[],3,FALSE)),"") -> 2018-08-10 | D63: 3889126.21 | E63: NT$29,698.01 | H63: 29698.01 | I63: 13493.32 | J63: =IF(Pay_Num<>"",Beg_Bal*(Interest_Rate/VLOOKUP(Interval,LoanLookup[],5,FALSE)),"") -> NT$16,204.69 | K63: 3875632.90 | L63: =SUM($J$13:$J63) -> 893231.32
B64: 52 | C64: =IF(Pay_Num<>"",DATE(YEAR(C63)+VLOOKUP(Interval,LoanLookup[],4,FALSE),MONTH(C63)+VLOOKUP(Interval,LoanLookup[],2,FALSE),DAY(C63)+VLOOKUP(Interval,LoanLookup[],3,FALSE)),"") -> 2018-09-10 | D64: 3875632.90 | E64: NT$29,698.01 | H64: 29698.01 | I64: 13549.54 | J64: =IF(Pay_Num<>"",Beg_Bal*(Interest_Rate/VLOOKUP(Interval,LoanLookup[],5,FALSE)),"") -> NT$16,148.47 | K64: 3862083.36 | L64: =SUM($J$13:$J64) -> 909379.79
B65: 53 | C65: =IF(Pay_Num<>"",DATE(YEAR(C64)+VLOOKUP(Interval,LoanLookup[],4,FALSE),MONTH(C64)+VLOOKUP(Interval,LoanLookup[],2,FALSE),DAY(C64)+VLOOKUP(Interval,LoanLookup[],3,FALSE)),"") -> 2018-10-10 | D65: 3862083.36 | E65: NT$29,698.01 | H65: 29698.01 | I65: 13605.99 | J65: =IF(Pay_Num<>"",Beg_Bal*(Interest_Rate/VLOOKUP(Interval,LoanLookup[],5,FALSE)),"") -> NT$16,092.01 | K65: 3848477.37 | L65: =SUM($J$13:$J65) -> 925471.80
B66: 54 | C66: =IF(Pay_Num<>"",DATE(YEAR(C65)+VLOOKUP(Interval,LoanLookup[],4,FALSE),MONTH(C65)+VLOOKUP(Interval,LoanLookup[],2,FALSE),DAY(C65)+VLOOKUP(Interval,LoanLookup[],3,FALSE)),"") -> 2018-11-10 | D66: 3848477.37 | E66: NT$29,698.01 | H66: 29698.01 | I66: 13662.69 | J66: =IF(Pay_Num<>"",Beg_Bal*(Interest_Rate/VLOOKUP(Interval,LoanLookup[],5,FALSE)),"") -> NT$16,035.32 | K66: 3834814.68 | L66: =SUM($J$13:$J66) -> 941507.13
B67: 55 | C67: =IF(Pay_Num<>"",DATE(YEAR(C66)+VLOOKUP(Interval,LoanLookup[],4,FALSE),MONTH(C66)+VLOOKUP(Interval,LoanLookup[],2,FALSE),DAY(C66)+VLOOKUP(Interval,LoanLookup[],3,FALSE)),"") -> 2018-12-10 | D67: 3834814.68 | E67: NT$29,698.01 | H67: 29698.01 | I67: 13719.61 | J67: =IF(Pay_Num<>"",Beg_Bal*(Interest_Rate/VLOOKUP(Interval,LoanLookup[],5,FALSE)),"") -> NT$15,978.39 | K67: 3821095.07 | L67: =SUM($J$13:$J67) -> 957485.52
B68: 56 | C68: =IF(Pay_Num<>"",DATE(YEAR(C67)+VLOOKUP(Interval,LoanLookup[],4,FALSE),MONTH(C67)+VLOOKUP(Interval,LoanLookup[],2,FALSE),DAY(C67)+VLOOKUP(Interval,LoanLookup[],3,FALSE)),"") -> 2019-01-10 | D68: 3821095.07 | E68: NT$29,698.01 | H68: 29698.01 | I68: 13776.78 | J68: =IF(Pay_Num<>"",Beg_Bal*(Interest_Rate/VLOOKUP(Interval,LoanLookup[],5,FALSE)),"") -> NT$15,921.23 | K68: 3807318.29 | L68: =SUM($J$13:$J68) -> 973406.75
B69: 57 | C69: =IF(Pay_Num<>"",DATE(YEAR(C68)+VLOOKUP(Interval,LoanLookup[],4,FALSE),MONTH(C68)+VLOOKUP(Interval,LoanLookup[],2,FALSE),DAY(C68)+VLOOKUP(Interval,LoanLookup[],3,FALSE)),"") -> 2019-02-10 | D69: 3807318.29 | E69: NT$29,698.01 | H69: 29698.01 | I69: 13834.18 | J69: =IF(Pay_Num<>"",Beg_Bal*(Interest_Rate/VLOOKUP(Interval,LoanLookup[],5,FALSE)),"") -> NT$15,863.83 | K69: 3793484.10 | L69: =SUM($J$13:$J69) -> 989270.58
B70: 58 | C70: =IF(Pay_Num<>"",DATE(YEAR(C69)+VLOOKUP(Interval,LoanLookup[],4,FALSE),MONTH(C69)+VLOOKUP(Interval,LoanLookup[],2,FALSE),DAY(C69)+VLOOKUP(Interval,LoanLookup[],3,FALSE)),"") -> 2019-03-10 | D70: 3793484.10 | E70: NT$29,698.01 | H70: 29698.01 | I70: 13891.82 | J70: =IF(Pay_Num<>"",Beg_Bal*(Interest_Rate/VLOOKUP(Interval,LoanLookup[],5,FALSE)),"") -> NT$15,806.18 | K70: 3779592.28 | L70: =SUM($J$13:$J70) -> 1005076.76
B71: 59 | C71: =IF(Pay_Num<>"",DATE(YEAR(C70)+VLOOKUP(Interval,LoanLookup[],4,FALSE),MONTH(C70)+VLOOKUP(Interval,LoanLookup[],2,FALSE),DAY(C70)+VLOOKUP(Interval,LoanLookup[],3,FALSE)),"") -> 2019-04-10 | D71: 3779592.28 | E71: NT$29,698.01 | H71: 29698.01 | I71: 13949.71 | J71: =IF(Pay_Num<>"",Beg_Bal*(Interest_Rate/VLOOKUP(Interval,LoanLookup[],5,FALSE)),"") -> NT$15,748.30 | K71: 3765642.57 | L71: =SUM($J$13:$J71) -> 1020825.06
B72: 60 | C72: =IF(Pay_Num<>"",DATE(YEAR(C71)+VLOOKUP(Interval,LoanLookup[],4,FALSE),MONTH(C71)+VLOOKUP(Interval,LoanLookup[],2,FALSE),DAY(C71)+VLOOKUP(Interval,LoanLookup[],3,FALSE)),"") -> 2019-05-10 | D72: 3765642.57 | E72: NT$29,698.01 | H72: 29698.01 | I72: 14007.83 | J72: =IF(Pay_Num<>"",Beg_Bal*(Interest_Rate/VLOOKUP(Interval,LoanLookup[],5,FALSE)),"") -> NT$15,690.18 | K72: 3751634.74 | L72: =SUM($J$13:$J72) -> 1036515.24
B73: 61 | C73: =IF(Pay_Num<>"",DATE(YEAR(C72)+VLOOKUP(Interval,LoanLookup[],4,FALSE),MONTH(C72)+VLOOKUP(Interval,LoanLookup[],2,FALSE),DAY(C72)+VLOOKUP(Interval,LoanLookup[],3,FALSE)),"") -> 2019-06-10 | D73: 3751634.74 | E73: NT$29,698.01 | H73: 29698.01 | I73: 14066.20 | J73: =IF(Pay_Num<>"",Beg_Bal*(Interest_Rate/VLOOKUP(Interval,LoanLookup[],5,FALSE)),"") -> NT$15,631.81 | K73: 3737568.55 | L73: =SUM($J$13:$J73) -> 1052147.05
B74: 62 | C74: =IF(Pay_Num<>"",DATE(YEAR(C73)+VLOOKUP(Interval,LoanLookup[],4,FALSE),MONTH(C73)+VLOOKUP(Interval,LoanLookup[],2,FALSE),DAY(C73)+VLOOKUP(Interval,LoanLookup[],3,FALSE)),"") -> 2019-07-10 | D74: 3737568.55 | E74: NT$29,698.01 | H74: 29698.01 | I74: 14124.81 | J74: =IF(Pay_Num<>"",Beg_Bal*(Interest_Rate/VLOOKUP(Interval,LoanLookup[],5,FALSE)),"") -> NT$15,573.20 | K74: 3723443.74 | L74: =SUM($J$13:$J74) -> 1067720.25
B75: 63 | C75: =IF(Pay_Num<>"",DATE(YEAR(C74)+VLOOKUP(Interval,LoanLookup[],4,FALSE),MONTH(C74)+VLOOKUP(Interval,LoanLookup[],2,FALSE),DAY(C74)+VLOOKUP(Interval,LoanLookup[],3,FALSE)),"") -> 2019-08-10 | D75: 3723443.74 | E75: NT$29,698.01 | H75: 29698.01 | I75: 14183.66 | J75: =IF(Pay_Num<>"",Beg_Bal*(Interest_Rate/VLOOKUP(Interval,LoanLookup[],5,FALSE)),"") -> NT$15,514.35 | K75: 3709260.08 | L75: =SUM($J$13:$J75) -> 1083234.60
B76: 64 | C76: =IF(Pay_Num<>"",DATE(YEAR(C75)+VLOOKUP(Interval,LoanLookup[],4,FALSE),MONTH(C75)+VLOOKUP(Interval,LoanLookup[],2,FALSE),DAY(C75)+VLOOKUP(Interval,LoanLookup[],3,FALSE)),"") -> 2019-09-10 | D76: 3709260.08 | E76: NT$29,698.01 | H76: 29698.01 | I76: 14242.76 | J76: =IF(Pay_Num<>"",Beg_Bal*(Interest_Rate/VLOOKUP(Interval,LoanLookup[],5,FALSE)),"") -> NT$15,455.25 | K76: 3695017.32 | L76: =SUM($J$13:$J76) -> 1098689.85
B77: 65 | C77: =IF(Pay_Num<>"",DATE(YEAR(C76)+VLOOKUP(Interval,LoanLookup[],4,FALSE),MONTH(C76)+VLOOKUP(Interval,LoanLookup[],2,FALSE),DAY(C76)+VLOOKUP(Interval,LoanLookup[],3,FALSE)),"") -> 2019-10-10 | D77: 3695017.32 | E77: NT$29,698.01 | H77: =IF(AND(Pay_Num<>"",Sched_Pay+Extra_Pay<Beg_Bal),Sched_Pay+Extra_Pay,IF(Pay_Num<>"",Beg_Bal,"")) -> 29698.01 | I77: 14302.10 | J77: =IF(Pay_Num<>"",Beg_Bal*(Interest_Rate/VLOOKUP(Interval,LoanLookup[],5,FALSE)),"") -> NT$15,395.91 | K77: =IF(AND(Pay_Num<>"",Sched_Pay+Extra_Pay<Beg_Bal),Beg_Bal-Princ,IF(Pay_Num<>"",0,"")) -> 3680715.22 | L77: =SUM($J$13:$J77) -> 1114085.76
B78: =IF(Values_Entered,B77+1,"") -> 66 | C78: =IF(Pay_Num<>"",DATE(YEAR(C77)+VLOOKUP(Interval,LoanLookup[],4,FALSE),MONTH(C77)+VLOOKUP(Interval,LoanLookup[],2,FALSE),DAY(C77)+VLOOKUP(Interval,LoanLookup[],3,FALSE)),"") -> 2019-11-10 | D78: =IF(Pay_Num<>"",K77,"") -> 3680715.22 | E78: NT$29,698.01 | F78: =IF(AND(Pay_Num<>"",Sched_Pay+Scheduled_Extra_Payments<Beg_Bal),Scheduled_Extra_Payments,IF(AND(Pay_Num<>"",Beg_Bal-Sched_Pay>0),Beg_Bal-Sched_Pay,IF(Pay_Num<>"",0,""))) -> 0 | H78: 29698.01 | I78: =IF(Pay_Num<>"",Total_Pay-Int,"") -> 14361.69 | J78: =IF(Pay_Num<>"",Beg_Bal*(Interest_Rate/VLOOKUP(Interval,LoanLookup[],5,FALSE)),"") -> NT$15,336.31 | K78: 3666353.52 | L78: =SUM($J$13:$J78) -> 1129422.07
B79: 67 | C79: =IF(Pay_Num<>"",DATE(YEAR(C78)+VLOOKUP(Interval,LoanLookup[],4,FALSE),MONTH(C78)+VLOOKUP(Interval,LoanLookup[],2,FALSE),DAY(C78)+VLOOKUP(Interval,LoanLookup[],3,FALSE)),"") -> 2019-12-10 | D79: 3666353.52 | E79: =IF(Pay_Num<>"",Scheduled_Monthly_Payment,"") -> NT$29,698.01 | F79: 0 | H79: 29698.01 | I79: 14421.54 | J79: =IF(Pay_Num<>"",Beg_Bal*(Interest_Rate/VLOOKUP(Interval,LoanLookup[],5,FALSE)),"") -> NT$15,276.47 | K79: 3651931.99 | L79: =SUM($J$13:$J79) -> 1144698.54
B80: 68 | C80: =IF(Pay_Num<>"",DATE(YEAR(C79)+VLOOKUP(Interval,LoanLookup[],4,FALSE),MONTH(C79)+VLOOKUP(Interval,LoanLookup[],2,FALSE),DAY(C79)+VLOOKUP(Interval,LoanLookup[],3,FALSE)),"") -> 2020-01-10 | D80: 3651931.99 | E80: NT$29,698.01 | F80: 0 | H80: 29698.01 | I80: 14481.62 | J80: =IF(Pay_Num<>"",Beg_Bal*(Interest_Rate/VLOOKUP(Interval,LoanLookup[],5,FALSE)),"") -> NT$15,216.38 | K80: 3637450.36 | L80: =SUM($J$13:$J80) -> 1159914.93
B81: 69 | C81: =IF(Pay_Num<>"",DATE(YEAR(C80)+VLOOKUP(Interval,LoanLookup[],4,FALSE),MONTH(C80)+VLOOKUP(Interval,LoanLookup[],2,FALSE),DAY(C80)+VLOOKUP(Interval,LoanLookup[],3,FALSE)),"") -> 2020-02-10 | D81: 3637450.36 | E81: NT$29,698.01 | F81: 0 | H81: 29698.01 | I81: 14541.97 | J81: =IF(Pay_Num<>"",Beg_Bal*(Interest_Rate/VLOOKUP(Interval,LoanLookup[],5,FALSE)),"") -> NT$15,156.04 | K81: 3622908.40 | L81: =SUM($J$13:$J81) -> 1175070.97
B82: 70 | C82: =IF(Pay_Num<>"",DATE(YEAR(C81)+VLOOKUP(Interval,LoanLookup[],4,FALSE),MONTH(C81)+VLOOKUP(Interval,LoanLookup[],2,FALSE),DAY(C81)+VLOOKUP(Interval,LoanLookup[],3,FALSE)),"") -> 2020-03-10 | D82: 3622908.40 | E82: NT$29,698.01 | F82: 0 | H82: 29698.01 | I82: 14602.56 | J82: =IF(Pay_Num<>"",Beg_Bal*(Interest_Rate/VLOOKUP(Interval,LoanLookup[],5,FALSE)),"") -> NT$15,095.45 | K82: 3608305.84 | L82: =SUM($J$13:$J82) -> 1190166.42
B83: 71 | C83: =IF(Pay_Num<>"",DATE(YEAR(C82)+VLOOKUP(Interval,LoanLookup[],4,FALSE),MONTH(C82)+VLOOKUP(Interval,LoanLookup[],2,FALSE),DAY(C82)+VLOOKUP(Interval,LoanLookup[],3,FALSE)),"") -> 2020-04-10 | D83: 3608305.84 | E83: NT$29,698.01 | F83: 0 | H83: 29698.01 | I83: 14663.40 | J83: =IF(Pay_Num<>"",Beg_Bal*(Interest_Rate/VLOOKUP(Interval,LoanLookup[],5,FALSE)),"") -> NT$15,034.61 | K83: 3593642.44 | L83: =SUM($J$13:$J83) -> 1205201.03
B84: 72 | C84: =IF(Pay_Num<>"",DATE(YEAR(C83)+VLOOKUP(Interval,LoanLookup[],4,FALSE),MONTH(C83)+VLOOKUP(Interval,LoanLookup[],2,FALSE),DAY(C83)+VLOOKUP(Interval,LoanLookup[],3,FALSE)),"") -> 2020-05-10 | D84: 3593642.44 | E84: NT$29,698.01 | F84: 0 | H84: 29698.01 | I84: 14724.50 | J84: =IF(Pay_Num<>"",Beg_Bal*(Interest_Rate/VLOOKUP(Interval,LoanLookup[],5,FALSE)),"") -> NT$14,973.51 | K84: 3578917.94 | L84: =SUM($J$13:$J84) -> 1220174.54
B85: 73 | C85: =IF(Pay_Num<>"",DATE(YEAR(C84)+VLOOKUP(Interval,LoanLookup[],4,FALSE),MONTH(C84)+VLOOKUP(Interval,LoanLookup[],2,FALSE),DAY(C84)+VLOOKUP(Interval,LoanLookup[],3,FALSE)),"") -> 2020-06-10 | D85: 3578917.94 | E85: NT$29,698.01 | F85: 0 | H85: 29698.01 | I85: 14785.85 | J85: =IF(Pay_Num<>"",Beg_Bal*(Interest_Rate/VLOOKUP(Interval,LoanLookup[],5,FALSE)),"") -> NT$14,912.16 | K85: 3564132.09 | L85: =SUM($J$13:$J85) -> 1235086.70
B86: 74 | C86: =IF(Pay_Num<>"",DATE(YEAR(C85)+VLOOKUP(Interval,LoanLookup[],4,FALSE),MONTH(C85)+VLOOKUP(Interval,LoanLookup[],2,FALSE),DAY(C85)+VLOOKUP(Interval,LoanLookup[],3,FALSE)),"") -> 2020-07-10 | D86: 3564132.09 | E86: NT$29,698.01 | F86: 0 | H86: 29698.01 | I86: 14847.46 | J86: =IF(Pay_Num<>"",Beg_Bal*(Interest_Rate/VLOOKUP(Interval,LoanLookup[],5,FALSE)),"") -> NT$14,850.55 | K86: 3549284.64 | L86: =SUM($J$13:$J86) -> 1249937.25
B87: 75 | C87: =IF(Pay_Num<>"",DATE(YEAR(C86)+VLOOKUP(Interval,LoanLookup[],4,FALSE),MONTH(C86)+VLOOKUP(Interval,LoanLookup[],2,FALSE),DAY(C86)+VLOOKUP(Interval,LoanLookup[],3,FALSE)),"") -> 2020-08-10 | D87: 3549284.64 | E87: NT$29,698.01 | F87: 0 | H87: 29698.01 | I87: 14909.32 | J87: =IF(Pay_Num<>"",Beg_Bal*(Interest_Rate/VLOOKUP(Interval,LoanLookup[],5,FALSE)),"") -> NT$14,788.69 | K87: 3534375.31 | L87: =SUM($J$13:$J87) -> 1264725.93
B88: 76 | C88: =IF(Pay_Num<>"",DATE(YEAR(C87)+VLOOKUP(Interval,LoanLookup[],4,FALSE),MONTH(C87)+VLOOKUP(Interval,LoanLookup[],2,FALSE),DAY(C87)+VLOOKUP(Interval,LoanLookup[],3,FALSE)),"") -> 2020-09-10 | D88: 3534375.31 | E88: NT$29,698.01 | F88: 0 | H88: 29698.01 | I88: 14971.44 | J88: =IF(Pay_Num<>"",Beg_Bal*(Interest_Rate/VLOOKUP(Interval,LoanLookup[],5,FALSE)),"") -> NT$14,726.56 | K88: 3519403.87 | L88: =SUM($J$13:$J88) -> 1279452.50
B89: 77 | C89: =IF(Pay_Num<>"",DATE(YEAR(C88)+VLOOKUP(Interval,LoanLookup[],4,FALSE),MONTH(C88)+VLOOKUP(Interval,LoanLookup[],2,FALSE),DAY(C88)+VLOOKUP(Interval,LoanLookup[],3,FALSE)),"") -> 2020-10-10 | D89: 3519403.87 | E89: NT$29,698.01 | F89: 0 | H89: 29698.01 | I89: 15033.83 | J89: =IF(Pay_Num<>"",Beg_Bal*(Interest_Rate/VLOOKUP(Interval,LoanLookup[],5,FALSE)),"") -> NT$14,664.18 | K89: 3504370.04 | L89: =SUM($J$13:$J89) -> 1294116.68
B90: 78 | C90: =IF(Pay_Num<>"",DATE(YEAR(C89)+VLOOKUP(Interval,LoanLookup[],4,FALSE),MONTH(C89)+VLOOKUP(Interval,LoanLookup[],2,FALSE),DAY(C89)+VLOOKUP(Interval,LoanLookup[],3,FALSE)),"") -> 2020-11-10 | D90: 3504370.04 | E90: NT$29,698.01 | F90: 0 | H90: 29698.01 | I90: 15096.47 | J90: =IF(Pay_Num<>"",Beg_Bal*(Interest_Rate/VLOOKUP(Interval,LoanLookup[],5,FALSE)),"") -> NT$14,601.54 | K90: 3489273.58 | L90: =SUM($J$13:$J90) -> 1308718.22
B91: 79 | C91: =IF(Pay_Num<>"",DATE(YEAR(C90)+VLOOKUP(Interval,LoanLookup[],4,FALSE),MONTH(C90)+VLOOKUP(Interval,LoanLookup[],2,FALSE),DAY(C90)+VLOOKUP(Interval,LoanLookup[],3,FALSE)),"") -> 2020-12-10 | D91: 3489273.58 | E91: NT$29,698.01 | F91: 0 | H91: 29698.01 | I91: 15159.37 | J91: =IF(Pay_Num<>"",Beg_Bal*(Interest_Rate/VLOOKUP(Interval,LoanLookup[],5,FALSE)),"") -> NT$14,538.64 | K91: 3474114.21 | L91: =SUM($J$13:$J91) -> 1323256.86
B92: 80 | C92: =IF(Pay_Num<>"",DATE(YEAR(C91)+VLOOKUP(Interval,LoanLookup[],4,FALSE),MONTH(C91)+VLOOKUP(Interval,LoanLookup[],2,FALSE),DAY(C91)+VLOOKUP(Interval,LoanLookup[],3,FALSE)),"") -> 2021-01-10 | D92: 3474114.21 | E92: NT$29,698.01 | F92: 0 | H92: 29698.01 | I92: 15222.53 | J92: =IF(Pay_Num<>"",Beg_Bal*(Interest_Rate/VLOOKUP(Interval,LoanLookup[],5,FALSE)),"") -> NT$14,475.48 | K92: 3458891.68 | L92: =SUM($J$13:$J92) -> 1337732.34
B93: 81 | C93: =IF(Pay_Num<>"",DATE(YEAR(C92)+VLOOKUP(Interval,LoanLookup[],4,FALSE),MONTH(C92)+VLOOKUP(Interval,LoanLookup[],2,FALSE),DAY(C92)+VLOOKUP(Interval,LoanLookup[],3,FALSE)),"") -> 2021-02-10 | D93: 3458891.68 | E93: NT$29,698.01 | F93: 0 | H93: 29698.01 | I93: 15285.96 | J93: =IF(Pay_Num<>"",Beg_Bal*(Interest_Rate/VLOOKUP(Interval,LoanLookup[],5,FALSE)),"") -> NT$14,412.05 | K93: 3443605.72 | L93: =SUM($J$13:$J93) -> 1352144.39
B94: 82 | C94: =IF(Pay_Num<>"",DATE(YEAR(C93)+VLOOKUP(Interval,LoanLookup[],4,FALSE),MONTH(C93)+VLOOKUP(Interval,LoanLookup[],2,FALSE),DAY(C93)+VLOOKUP(Interval,LoanLookup[],3,FALSE)),"") -> 2021-03-10 | D94: 3443605.72 | E94: NT$29,698.01 | F94: 0 | H94: 29698.01 | I94: 15349.65 | J94: =IF(Pay_Num<>"",Beg_Bal*(Interest_Rate/VLOOKUP(Interval,LoanLookup[],5,FALSE)),"") -> NT$14,348.36 | K94: 3428256.07 | L94: =SUM($J$13:$J94) -> 1366492.74
B95: 83 | C95: =IF(Pay_Num<>"",DATE(YEAR(C94)+VLOOKUP(Interval,LoanLookup[],4,FALSE),MONTH(C94)+VLOOKUP(Interval,LoanLookup[],2,FALSE),DAY(C94)+VLOOKUP(Interval,LoanLookup[],3,FALSE)),"") -> 2021-04-10 | D95: 3428256.07 | E95: NT$29,698.01 | F95: 0 | H95: 29698.01 | I95: 15413.61 | J95: =IF(Pay_Num<>"",Beg_Bal*(Interest_Rate/VLOOKUP(Interval,LoanLookup[],5,FALSE)),"") -> NT$14,284.40 | K95: 3412842.46 | L95: =SUM($J$13:$J95) -> 1380777.14
B96: 84 | C96: =IF(Pay_Num<>"",DATE(YEAR(C95)+VLOOKUP(Interval,LoanLookup[],4,FALSE),MONTH(C95)+VLOOKUP(Interval,LoanLookup[],2,FALSE),DAY(C95)+VLOOKUP(Interval,LoanLookup[],3,FALSE)),"") -> 2021-05-10 | D96: 3412842.46 | E96: NT$29,698.01 | F96: 0 | H96: 29698.01 | I96: 15477.83 | J96: =IF(Pay_Num<>"",Beg_Bal*(Interest_Rate/VLOOKUP(Interval,LoanLookup[],5,FALSE)),"") -> NT$14,220.18 | K96: 3397364.63 | L96: =SUM($J$13:$J96) -> 1394997.32
B97: 85 | C97: =IF(Pay_Num<>"",DATE(YEAR(C96)+VLOOKUP(Interval,LoanLookup[],4,FALSE),MONTH(C96)+VLOOKUP(Interval,LoanLookup[],2,FALSE),DAY(C96)+VLOOKUP(Interval,LoanLookup[],3,FALSE)),"") -> 2021-06-10 | D97: 3397364.63 | E97: NT$29,698.01 | F97: 0 | H97: 29698.01 | I97: 15542.32 | J97: =IF(Pay_Num<>"",Beg_Bal*(Interest_Rate/VLOOKUP(Interval,LoanLookup[],5,FALSE)),"") -> NT$14,155.69 | K97: 3381822.30 | L97: =SUM($J$13:$J97) -> 1409153.01
B98: 86 | C98: =IF(Pay_Num<>"",DATE(YEAR(C97)+VLOOKUP(Interval,LoanLookup[],4,FALSE),MONTH(C97)+VLOOKUP(Interval,LoanLookup[],2,FALSE),DAY(C97)+VLOOKUP(Interval,LoanLookup[],3,FALSE)),"") -> 2021-07-10 | D98: 3381822.30 | E98: NT$29,698.01 | F98: 0 | H98: 29698.01 | I98: 15607.08 | J98: =IF(Pay_Num<>"",Beg_Bal*(Interest_Rate/VLOOKUP(Interval,LoanLookup[],5,FALSE)),"") -> NT$14,090.93 | K98: 3366215.22 | L98: =SUM($J$13:$J98) -> 1423243.93
B99: 87 | C99: =IF(Pay_Num<>"",DATE(YEAR(C98)+VLOOKUP(Interval,LoanLookup[],4,FALSE),MONTH(C98)+VLOOKUP(Interval,LoanLookup[],2,FALSE),DAY(C98)+VLOOKUP(Interval,LoanLookup[],3,FALSE)),"") -> 2021-08-10 | D99: 3366215.22 | E99: NT$29,698.01 | F99: 0 | H99: 29698.01 | I99: 15672.11 | J99: =IF(Pay_Num<>"",Beg_Bal*(Interest_Rate/VLOOKUP(Interval,LoanLookup[],5,FALSE)),"") -> NT$14,025.90 | K99: 3350543.11 | L99: =SUM($J$13:$J99) -> 1437269.83
B100: 88 | C100: =IF(Pay_Num<>"",DATE(YEAR(C99)+VLOOKUP(Interval,LoanLookup[],4,FALSE),MONTH(C99)+VLOOKUP(Interval,LoanLookup[],2,FALSE),DAY(C99)+VLOOKUP(Interval,LoanLookup[],3,FALSE)),"") -> 2021-09-10 | D100: 3350543.11 | E100: NT$29,698.01 | F100: 0 | H100: 29698.01 | I100: 15737.41 | J100: =IF(Pay_Num<>"",Beg_Bal*(Interest_Rate/VLOOKUP(Interval,LoanLookup[],5,FALSE)),"") -> NT$13,960.60 | K100: 3334805.70 | L100: =SUM($J$13:$J100) -> 1451230.43
B101: 89 | C101: =IF(Pay_Num<>"",DATE(YEAR(C100)+VLOOKUP(Interval,LoanLookup[],4,FALSE),MONTH(C100)+VLOOKUP(Interval,LoanLookup[],2,FALSE),DAY(C100)+VLOOKUP(Interval,LoanLookup[],3,FALSE)),"") -> 2021-10-10 | D101: 3334805.70 | E101: NT$29,698.01 | F101: 0 | H101: 29698.01 | I101: 15802.98 | J101: =IF(Pay_Num<>"",Beg_Bal*(Interest_Rate/VLOOKUP(Interval,LoanLookup[],5,FALSE)),"") -> NT$13,895.02 | K101: 3319002.71 | L101: =SUM($J$13:$J101) -> 1465125.45
B102: 90 | C102: =IF(Pay_Num<>"",DATE(YEAR(C101)+VLOOKUP(Interval,LoanLookup[],4,FALSE),MONTH(C101)+VLOOKUP(Interval,LoanLookup[],2,FALSE),DAY(C101)+VLOOKUP(Interval,LoanLookup[],3,FALSE)),"") -> 2021-11-10 | D102: 3319002.71 | E102: NT$29,698.01 | F102: 0 | H102: 29698.01 | I102: 15868.83 | J102: =IF(Pay_Num<>"",Beg_Bal*(Interest_Rate/VLOOKUP(Interval,LoanLookup[],5,FALSE)),"") -> NT$13,829.18 | K102: 3303133.88 | L102: =SUM($J$13:$J102) -> 1478954.63
B103: 91 | C103: =IF(Pay_Num<>"",DATE(YEAR(C102)+VLOOKUP(Interval,LoanLookup[],4,FALSE),MONTH(C102)+VLOOKUP(Interval,LoanLookup[],2,FALSE),DAY(C102)+VLOOKUP(Interval,LoanLookup[],3,FALSE)),"") -> 2021-12-10 | D103: 3303133.88 | E103: NT$29,698.01 | F103: 0 | H103: 29698.01 | I103: 15934.95 | J103: =IF(Pay_Num<>"",Beg_Bal*(Interest_Rate/VLOOKUP(Interval,LoanLookup[],5,FALSE)),"") -> NT$13,763.06 | K103: 3287198.93 | L103: =SUM($J$13:$J103) -> 1492717.69
B104: 92 | C104: =IF(Pay_Num<>"",DATE(YEAR(C103)+VLOOKUP(Interval,LoanLookup[],4,FALSE),MONTH(C103)+VLOOKUP(Interval,LoanLookup[],2,FALSE),DAY(C103)+VLOOKUP(Interval,LoanLookup[],3,FALSE)),"") -> 2022-01-10 | D104: 3287198.93 | E104: NT$29,698.01 | F104: 0 | H104: 29698.01 | I104: 16001.35 | J104: =IF(Pay_Num<>"",Beg_Bal*(Interest_Rate/VLOOKUP(Interval,LoanLookup[],5,FALSE)),"") -> NT$13,696.66 | K104: 3271197.59 | L104: =SUM($J$13:$J104) -> 1506414.35
B105: 93 | C105: =IF(Pay_Num<>"",DATE(YEAR(C104)+VLOOKUP(Interval,LoanLookup[],4,FALSE),MONTH(C104)+VLOOKUP(Interval,LoanLookup[],2,FALSE),DAY(C104)+VLOOKUP(Interval,LoanLookup[],3,FALSE)),"") -> 2022-02-10 | D105: 3271197.59 | E105: NT$29,698.01 | F105: 0 | H105: 29698.01 | I105: 16068.02 | J105: =IF(Pay_Num<>"",Beg_Bal*(Interest_Rate/VLOOKUP(Interval,LoanLookup[],5,FALSE)),"") -> NT$13,629.99 | K105: 3255129.57 | L105: =SUM($J$13:$J105) -> 1520044.34
B106: 94 | C106: =IF(Pay_Num<>"",DATE(YEAR(C105)+VLOOKUP(Interval,LoanLookup[],4,FALSE),MONTH(C105)+VLOOKUP(Interval,LoanLookup[],2,FALSE),DAY(C105)+VLOOKUP(Interval,LoanLookup[],3,FALSE)),"") -> 2022-03-10 | D106: 3255129.57 | E106: NT$29,698.01 | F106: 0 | H106: 29698.01 | I106: 16134.97 | J106: =IF(Pay_Num<>"",Beg_Bal*(Interest_Rate/VLOOKUP(Interval,LoanLookup[],5,FALSE)),"") -> NT$13,563.04 | K106: 3238994.60 | L106: =SUM($J$13:$J106) -> 1533607.38
B107: 95 | C107: =IF(Pay_Num<>"",DATE(YEAR(C106)+VLOOKUP(Interval,LoanLookup[],4,FALSE),MONTH(C106)+VLOOKUP(Interval,LoanLookup[],2,FALSE),DAY(C106)+VLOOKUP(Interval,LoanLookup[],3,FALSE)),"") -> 2022-04-10 | D107: 3238994.60 | E107: NT$29,698.01 | F107: 0 | H107: 29698.01 | I107: 16202.20 | J107: =IF(Pay_Num<>"",Beg_Bal*(Interest_Rate/VLOOKUP(Interval,LoanLookup[],5,FALSE)),"") -> NT$13,495.81 | K107: 3222792.40 | L107: =SUM($J$13:$J107) -> 1547103.19
B108: 96 | C108: =IF(Pay_Num<>"",DATE(YEAR(C107)+VLOOKUP(Interval,LoanLookup[],4,FALSE),MONTH(C107)+VLOOKUP(Interval,LoanLookup[],2,FALSE),DAY(C107)+VLOOKUP(Interval,LoanLookup[],3,FALSE)),"") -> 2022-05-10 | D108: 3222792.40 | E108: NT$29,698.01 | F108: 0 | H108: 29698.01 | I108: 16269.71 | J108: =IF(Pay_Num<>"",Beg_Bal*(Interest_Rate/VLOOKUP(Interval,LoanLookup[],5,FALSE)),"") -> NT$13,428.30 | K108: 3206522.70 | L108: =SUM($J$13:$J108) -> 1560531.49
B109: 97 | C109: =IF(Pay_Num<>"",DATE(YEAR(C108)+VLOOKUP(Interval,LoanLookup[],4,FALSE),MONTH(C108)+VLOOKUP(Interval,LoanLookup[],2,FALSE),DAY(C108)+VLOOKUP(Interval,LoanLookup[],3,FALSE)),"") -> 2022-06-10 | D109: 3206522.70 | E109: NT$29,698.01 | F109: 0 | H109: 29698.01 | I109: 16337.50 | J109: =IF(Pay_Num<>"",Beg_Bal*(Interest_Rate/VLOOKUP(Interval,LoanLookup[],5,FALSE)),"") -> NT$13,360.51 | K109: 3190185.20 | L109: =SUM($J$13:$J109) -> 1573892.00
B110: 98 | C110: =IF(Pay_Num<>"",DATE(YEAR(C109)+VLOOKUP(Interval,LoanLookup[],4,FALSE),MONTH(C109)+VLOOKUP(Interval,LoanLookup[],2,FALSE),DAY(C109)+VLOOKUP(Interval,LoanLookup[],3,FALSE)),"") -> 2022-07-10 | D110: 3190185.20 | E110: NT$29,698.01 | F110: 0 | H110: 29698.01 | I110: 16405.57 | J110: =IF(Pay_Num<>"",Beg_Bal*(Interest_Rate/VLOOKUP(Interval,LoanLookup[],5,FALSE)),"") -> NT$13,292.44 | K110: 3173779.63 | L110: =SUM($J$13:$J110) -> 1587184.44
B111: 99 | C111: =IF(Pay_Num<>"",DATE(YEAR(C110)+VLOOKUP(Interval,LoanLookup[],4,FALSE),MONTH(C110)+VLOOKUP(Interval,LoanLookup[],2,FALSE),DAY(C110)+VLOOKUP(Interval,LoanLookup[],3,FALSE)),"") -> 2022-08-10 | D111: 3173779.63 | E111: NT$29,698.01 | F111: 0 | H111: 29698.01 | I111: 16473.93 | J111: =IF(Pay_Num<>"",Beg_Bal*(Interest_Rate/VLOOKUP(Interval,LoanLookup[],5,FALSE)),"") -> NT$13,224.08 | K111: 3157305.70 | L111: =SUM($J$13:$J111) -> 1600408.52
B112: 100 | C112: =IF(Pay_Num<>"",DATE(YEAR(C111)+VLOOKUP(Interval,LoanLookup[],4,FALSE),MONTH(C111)+VLOOKUP(Interval,LoanLookup[],2,FALSE),DAY(C111)+VLOOKUP(Interval,LoanLookup[],3,FALSE)),"") -> 2022-09-10 | D112: 3157305.70 | E112: NT$29,698.01 | F112: 0 | H112: 29698.01 | I112: 16542.57 | J112: =IF(Pay_Num<>"",Beg_Bal*(Interest_Rate/VLOOKUP(Interval,LoanLookup[],5,FALSE)),"") -> NT$13,155.44 | K112: 3140763.14 | L112: =SUM($J$13:$J112) -> 1613563.96
B113: 101 | C113: =IF(Pay_Num<>"",DATE(YEAR(C112)+VLOOKUP(Interval,LoanLookup[],4,FALSE),MONTH(C112)+VLOOKUP(Interval,LoanLookup[],2,FALSE),DAY(C112)+VLOOKUP(Interval,LoanLookup[],3,FALSE)),"") -> 2022-10-10 | D113: 3140763.14 | E113: NT$29,698.01 | F113: 0 | H113: 29698.01 | I113: 16611.50 | J113: =IF(Pay_Num<>"",Beg_Bal*(Interest_Rate/VLOOKUP(Interval,LoanLookup[],5,FALSE)),"") -> NT$13,086.51 | K113: 3124151.64 | L113: =SUM($J$13:$J113) -> 1626650.48
B114: 102 | C114: =IF(Pay_Num<>"",DATE(YEAR(C113)+VLOOKUP(Interval,LoanLookup[],4,FALSE),MONTH(C113)+VLOOKUP(Interval,LoanLookup[],2,FALSE),DAY(C113)+VLOOKUP(Interval,LoanLookup[],3,FALSE)),"") -> 2022-11-10 | D114: 3124151.64 | E114: NT$29,698.01 | F114: 0 | H114: 29698.01 | I114: 16680.71 | J114: =IF(Pay_Num<>"",Beg_Bal*(Interest_Rate/VLOOKUP(Interval,LoanLookup[],5,FALSE)),"") -> NT$13,017.30 | K114: 3107470.93 | L114: =SUM($J$13:$J114) -> 1639667.77
B115: 103 | C115: =IF(Pay_Num<>"",DATE(YEAR(C114)+VLOOKUP(Interval,LoanLookup[],4,FALSE),MONTH(C114)+VLOOKUP(Interval,LoanLookup[],2,FALSE),DAY(C114)+VLOOKUP(Interval,LoanLookup[],3,FALSE)),"") -> 2022-12-10 | D115: 3107470.93 | E115: NT$29,698.01 | F115: 0 | H115: 29698.01 | I115: 16750.21 | J115: =IF(Pay_Num<>"",Beg_Bal*(Interest_Rate/VLOOKUP(Interval,LoanLookup[],5,FALSE)),"") -> NT$12,947.80 | K115: 3090720.72 | L115: =SUM($J$13:$J115) -> 1652615.57
B116: 104 | C116: =IF(Pay_Num<>"",DATE(YEAR(C115)+VLOOKUP(Interval,LoanLookup[],4,FALSE),MONTH(C115)+VLOOKUP(Interval,LoanLookup[],2,FALSE),DAY(C115)+VLOOKUP(Interval,LoanLookup[],3,FALSE)),"") -> 2023-01-10 | D116: 3090720.72 | E116: NT$29,698.01 | F116: 0 | H116: 29698.01 | I116: 16820.01 | J116: =IF(Pay_Num<>"",Beg_Bal*(Interest_Rate/VLOOKUP(Interval,LoanLookup[],5,FALSE)),"") -> NT$12,878.00 | K116: 3073900.71 | L116: =SUM($J$13:$J116) -> 1665493.57
B117: 105 | C117: =IF(Pay_Num<>"",DATE(YEAR(C116)+VLOOKUP(Interval,LoanLookup[],4,FALSE),MONTH(C116)+VLOOKUP(Interval,LoanLookup[],2,FALSE),DAY(C116)+VLOOKUP(Interval,LoanLookup[],3,FALSE)),"") -> 2023-02-10 | D117: 3073900.71 | E117: NT$29,698.01 | F117: 0 | H117: 29698.01 | I117: 16890.09 | J117: =IF(Pay_Num<>"",Beg_Bal*(Interest_Rate/VLOOKUP(Interval,LoanLookup[],5,FALSE)),"") -> NT$12,807.92 | K117: 3057010.62 | L117: =SUM($J$13:$J117) -> 1678301.49
B118: 106 | C118: =IF(Pay_Num<>"",DATE(YEAR(C117)+VLOOKUP(Interval,LoanLookup[],4,FALSE),MONTH(C117)+VLOOKUP(Interval,LoanLookup[],2,FALSE),DAY(C117)+VLOOKUP(Interval,LoanLookup[],3,FALSE)),"") -> 2023-03-10 | D118: 3057010.62 | E118: NT$29,698.01 | F118: 0 | H118: 29698.01 | I118: 16960.46 | J118: =IF(Pay_Num<>"",Beg_Bal*(Interest_Rate/VLOOKUP(Interval,LoanLookup[],5,FALSE)),"") -> NT$12,737.54 | K118: 3040050.16 | L118: =SUM($J$13:$J118) -> 1691039.04
B119: 107 | C119: =IF(Pay_Num<>"",DATE(YEAR(C118)+VLOOKUP(Interval,LoanLookup[],4,FALSE),MONTH(C118)+VLOOKUP(Interval,LoanLookup[],2,FALSE),DAY(C118)+VLOOKUP(Interval,LoanLookup[],3,FALSE)),"") -> 2023-04-10 | D119: 3040050.16 | E119: NT$29,698.01 | F119: 0 | H119: 29698.01 | I119: 17031.13 | J119: =IF(Pay_Num<>"",Beg_Bal*(Interest_Rate/VLOOKUP(Interval,LoanLookup[],5,FALSE)),"") -> NT$12,666.88 | K119: 3023019.03 | L119: =SUM($J$13:$J119) -> 1703705.91
B120: 108 | C120: =IF(Pay_Num<>"",DATE(YEAR(C119)+VLOOKUP(Interval,LoanLookup[],4,FALSE),MONTH(C119)+VLOOKUP(Interval,LoanLookup[],2,FALSE),DAY(C119)+VLOOKUP(Interval,LoanLookup[],3,FALSE)),"") -> 2023-05-10 | D120: 3023019.03 | E120: NT$29,698.01 | F120: 0 | H120: 29698.01 | I120: 17102.10 | J120: =IF(Pay_Num<>"",Beg_Bal*(Interest_Rate/VLOOKUP(Interval,LoanLookup[],5,FALSE)),"") -> NT$12,595.91 | K120: 3005916.93 | L120: =SUM($J$13:$J120) -> 1716301.82
B121: 109 | C121: =IF(Pay_Num<>"",DATE(YEAR(C120)+VLOOKUP(Interval,LoanLookup[],4,FALSE),MONTH(C120)+VLOOKUP(Interval,LoanLookup[],2,FALSE),DAY(C120)+VLOOKUP(Interval,LoanLookup[],3,FALSE)),"") -> 2023-06-10 | D121: 3005916.93 | E121: NT$29,698.01 | F121: 0 | H121: 29698.01 | I121: 17173.35 | J121: =IF(Pay_Num<>"",Beg_Bal*(Interest_Rate/VLOOKUP(Interval,LoanLookup[],5,FALSE)),"") -> NT$12,524.65 | K121: 2988743.58 | L121: =SUM($J$13:$J121) -> 1728826.48
B122: 110 | C122: =IF(Pay_Num<>"",DATE(YEAR(C121)+VLOOKUP(Interval,LoanLookup[],4,FALSE),MONTH(C121)+VLOOKUP(Interval,LoanLookup[],2,FALSE),DAY(C121)+VLOOKUP(Interval,LoanLookup[],3,FALSE)),"") -> 2023-07-10 | D122: 2988743.58 | E122: NT$29,698.01 | F122: 0 | H122: 29698.01 | I122: 17244.91 | J122: =IF(Pay_Num<>"",Beg_Bal*(Interest_Rate/VLOOKUP(Interval,LoanLookup[],5,FALSE)),"") -> NT$12,453.10 | K122: 2971498.67 | L122: =SUM($J$13:$J122) -> 1741279.58
B123: 111 | C123: =IF(Pay_Num<>"",DATE(YEAR(C122)+VLOOKUP(Interval,LoanLookup[],4,FALSE),MONTH(C122)+VLOOKUP(Interval,LoanLookup[],2,FALSE),DAY(C122)+VLOOKUP(Interval,LoanLookup[],3,FALSE)),"") -> 2023-08-10 | D123: 2971498.67 | E123: NT$29,698.01 | F123: 0 | H123: 29698.01 | I123: 17316.76 | J123: =IF(Pay_Num<>"",Beg_Bal*(Interest_Rate/VLOOKUP(Interval,LoanLookup[],5,FALSE)),"") -> NT$12,381.24 | K123: 2954181.90 | L123: =SUM($J$13:$J123) -> 1753660.82
B124: 112 | C124: =IF(Pay_Num<>"",DATE(YEAR(C123)+VLOOKUP(Interval,LoanLookup[],4,FALSE),MONTH(C123)+VLOOKUP(Interval,LoanLookup[],2,FALSE),DAY(C123)+VLOOKUP(Interval,LoanLookup[],3,FALSE)),"") -> 2023-09-10 | D124: 2954181.90 | E124: NT$29,698.01 | F124: 0 | H124: 29698.01 | I124: 17388.92 | J124: =IF(Pay_Num<>"",Beg_Bal*(Interest_Rate/VLOOKUP(Interval,LoanLookup[],5,FALSE)),"") -> NT$12,309.09 | K124: 2936792.99 | L124: =SUM($J$13:$J124) -> 1765969.91
B125: 113 | C125: =IF(Pay_Num<>"",DATE(YEAR(C124)+VLOOKUP(Interval,LoanLookup[],4,FALSE),MONTH(C124)+VLOOKUP(Interval,LoanLookup[],2,FALSE),DAY(C124)+VLOOKUP(Interval,LoanLookup[],3,FALSE)),"") -> 2023-10-10 | D125: 2936792.99 | E125: NT$29,698.01 | F125: 0 | H125: 29698.01 | I125: 17461.37 | J125: =IF(Pay_Num<>"",Beg_Bal*(Interest_Rate/VLOOKUP(Interval,LoanLookup[],5,FALSE)),"") -> NT$12,236.64 | K125: 2919331.62 | L125: =SUM($J$13:$J125) -> 1778206.55
B126: 114 | C126: =IF(Pay_Num<>"",DATE(YEAR(C125)+VLOOKUP(Interval,LoanLookup[],4,FALSE),MONTH(C125)+VLOOKUP(Interval,LoanLookup[],2,FALSE),DAY(C125)+VLOOKUP(Interval,LoanLookup[],3,FALSE)),"") -> 2023-11-10 | D126: 2919331.62 | E126: NT$29,698.01 | F126: 0 | H126: 29698.01 | I126: 17534.13 | J126: =IF(Pay_Num<>"",Beg_Bal*(Interest_Rate/VLOOKUP(Interval,LoanLookup[],5,FALSE)),"") -> NT$12,163.88 | K126: 2901797.49 | L126: =SUM($J$13:$J126) -> 1790370.43
B127: 115 | C127: =IF(Pay_Num<>"",DATE(YEAR(C126)+VLOOKUP(Interval,LoanLookup[],4,FALSE),MONTH(C126)+VLOOKUP(Interval,LoanLookup[],2,FALSE),DAY(C126)+VLOOKUP(Interval,LoanLookup[],3,FALSE)),"") -> 2023-12-10 | D127: 2901797.49 | E127: NT$29,698.01 | F127: 0 | H127: 29698.01 | I127: 17607.19 | J127: =IF(Pay_Num<>"",Beg_Bal*(Interest_Rate/VLOOKUP(Interval,LoanLookup[],5,FALSE)),"") -> NT$12,090.82 | K127: 2884190.30 | L127: =SUM($J$13:$J127) -> 1802461.25
B128: 116 | C128: =IF(Pay_Num<>"",DATE(YEAR(C127)+VLOOKUP(Interval,LoanLookup[],4,FALSE),MONTH(C127)+VLOOKUP(Interval,LoanLookup[],2,FALSE),DAY(C127)+VLOOKUP(Interval,LoanLookup[],3,FALSE)),"") -> 2024-01-10 | D128: 2884190.30 | E128: NT$29,698.01 | F128: 0 | H128: 29698.01 | I128: 17680.55 | J128: =IF(Pay_Num<>"",Beg_Bal*(Interest_Rate/VLOOKUP(Interval,LoanLookup[],5,FALSE)),"") -> NT$12,017.46 | K128: 2866509.76 | L128: =SUM($J$13:$J128) -> 1814478.71
B129: 117 | C129: =IF(Pay_Num<>"",DATE(YEAR(C128)+VLOOKUP(Interval,LoanLookup[],4,FALSE),MONTH(C128)+VLOOKUP(Interval,LoanLookup[],2,FALSE),DAY(C128)+VLOOKUP(Interval,LoanLookup[],3,FALSE)),"") -> 2024-02-10 | D129: 2866509.76 | E129: NT$29,698.01 | F129: 0 | H129: 29698.01 | I129: 17754.22 | J129: =IF(Pay_Num<>"",Beg_Bal*(Interest_Rate/VLOOKUP(Interval,LoanLookup[],5,FALSE)),"") -> NT$11,943.79 | K129: 2848755.54 | L129: =SUM($J$13:$J129) -> 1826422.50
B130: 118 | C130: =IF(Pay_Num<>"",DATE(YEAR(C129)+VLOOKUP(Interval,LoanLookup[],4,FALSE),MONTH(C129)+VLOOKUP(Interval,LoanLookup[],2,FALSE),DAY(C129)+VLOOKUP(Interval,LoanLookup[],3,FALSE)),"") -> 2024-03-10 | D130: 2848755.54 | E130: NT$29,698.01 | F130: 0 | H130: 29698.01 | I130: 17828.19 | J130: =IF(Pay_Num<>"",Beg_Bal*(Interest_Rate/VLOOKUP(Interval,LoanLookup[],5,FALSE)),"") -> NT$11,869.81 | K130: 2830927.34 | L130: =SUM($J$13:$J130) -> 1838292.32
B131: 119 | C131: =IF(Pay_Num<>"",DATE(YEAR(C130)+VLOOKUP(Interval,LoanLookup[],4,FALSE),MONTH(C130)+VLOOKUP(Interval,LoanLookup[],2,FALSE),DAY(C130)+VLOOKUP(Interval,LoanLookup[],3,FALSE)),"") -> 2024-04-10 | D131: 2830927.34 | E131: NT$29,698.01 | F131: 0 | H131: 29698.01 | I131: 17902.48 | J131: =IF(Pay_Num<>"",Beg_Bal*(Interest_Rate/VLOOKUP(Interval,LoanLookup[],5,FALSE)),"") -> NT$11,795.53 | K131: 2813024.87 | L131: =SUM($J$13:$J131) -> 1850087.85
B132: 120 | C132: =IF(Pay_Num<>"",DATE(YEAR(C131)+VLOOKUP(Interval,LoanLookup[],4,FALSE),MONTH(C131)+VLOOKUP(Interval,LoanLookup[],2,FALSE),DAY(C131)+VLOOKUP(Interval,LoanLookup[],3,FALSE)),"") -> 2024-05-10 | D132: 2813024.87 | E132: NT$29,698.01 | F132: 0 | H132: 29698.01 | I132: 17977.07 | J132: =IF(Pay_Num<>"",Beg_Bal*(Interest_Rate/VLOOKUP(Interval,LoanLookup[],5,FALSE)),"") -> NT$11,720.94 | K132: 2795047.79 | L132: =SUM($J$13:$J132) -> 1861808.79
B133: 121 | C133: =IF(Pay_Num<>"",DATE(YEAR(C132)+VLOOKUP(Interval,LoanLookup[],4,FALSE),MONTH(C132)+VLOOKUP(Interval,LoanLookup[],2,FALSE),DAY(C132)+VLOOKUP(Interval,LoanLookup[],3,FALSE)),"") -> 2024-06-10 | D133: 2795047.79 | E133: NT$29,698.01 | F133: 0 | H133: 29698.01 | I133: 18051.98 | J133: =IF(Pay_Num<>"",Beg_Bal*(Interest_Rate/VLOOKUP(Interval,LoanLookup[],5,FALSE)),"") -> NT$11,646.03 | K133: 2776995.82 | L133: =SUM($J$13:$J133) -> 1873454.82
B134: 122 | C134: =IF(Pay_Num<>"",DATE(YEAR(C133)+VLOOKUP(Interval,LoanLookup[],4,FALSE),MONTH(C133)+VLOOKUP(Interval,LoanLookup[],2,FALSE),DAY(C133)+VLOOKUP(Interval,LoanLookup[],3,FALSE)),"") -> 2024-07-10 | D134: 2776995.82 | E134: NT$29,698.01 | F134: 0 | H134: 29698.01 | I134: 18127.19 | J134: =IF(Pay_Num<>"",Beg_Bal*(Interest_Rate/VLOOKUP(Interval,LoanLookup[],5,FALSE)),"") -> NT$11,570.82 | K134: 2758868.63 | L134: =SUM($J$13:$J134) -> 1885025.64
B135: 123 | C135: =IF(Pay_Num<>"",DATE(YEAR(C134)+VLOOKUP(Interval,LoanLookup[],4,FALSE),MONTH(C134)+VLOOKUP(Interval,LoanLookup[],2,FALSE),DAY(C134)+VLOOKUP(Interval,LoanLookup[],3,FALSE)),"") -> 2024-08-10 | D135: 2758868.63 | E135: NT$29,698.01 | F135: 0 | H135: 29698.01 | I135: 18202.72 | J135: =IF(Pay_Num<>"",Beg_Bal*(Interest_Rate/VLOOKUP(Interval,LoanLookup[],5,FALSE)),"") -> NT$11,495.29 | K135: 2740665.90 | L135: =SUM($J$13:$J135) -> 1896520.92
B136: 124 | C136: =IF(Pay_Num<>"",DATE(YEAR(C135)+VLOOKUP(Interval,LoanLookup[],4,FALSE),MONTH(C135)+VLOOKUP(Interval,LoanLookup[],2,FALSE),DAY(C135)+VLOOKUP(Interval,LoanLookup[],3,FALSE)),"") -> 2024-09-10 | D136: 2740665.90 | E136: NT$29,698.01 | F136: 0 | H136: 29698.01 | I136: 18278.57 | J136: =IF(Pay_Num<>"",Beg_Bal*(Interest_Rate/VLOOKUP(Interval,LoanLookup[],5,FALSE)),"") -> NT$11,419.44 | K136: 2722387.34 | L136: =SUM($J$13:$J136) -> 1907940.36
B137: 125 | C137: =IF(Pay_Num<>"",DATE(YEAR(C136)+VLOOKUP(Interval,LoanLookup[],4,FALSE),MONTH(C136)+VLOOKUP(Interval,LoanLookup[],2,FALSE),DAY(C136)+VLOOKUP(Interval,LoanLookup[],3,FALSE)),"") -> 2024-10-10 | D137: 2722387.34 | E137: NT$29,698.01 | F137: 0 | H137: 29698.01 | I137: 18354.73 | J137: =IF(Pay_Num<>"",Beg_Bal*(Interest_Rate/VLOOKUP(Interval,LoanLookup[],5,FALSE)),"") -> NT$11,343.28 | K137: 2704032.61 | L137: =SUM($J$13:$J137) -> 1919283.64
B138: 126 | C138: =IF(Pay_Num<>"",DATE(YEAR(C137)+VLOOKUP(Interval,LoanLookup[],4,FALSE),MONTH(C137)+VLOOKUP(Interval,LoanLookup[],2,FALSE),DAY(C137)+VLOOKUP(Interval,LoanLookup[],3,FALSE)),"") -> 2024-11-10 | D138: 2704032.61 | E138: NT$29,698.01 | F138: 0 | H138: 29698.01 | I138: 18431.21 | J138: =IF(Pay_Num<>"",Beg_Bal*(Interest_Rate/VLOOKUP(Interval,LoanLookup[],5,FALSE)),"") -> NT$11,266.80 | K138: 2685601.40 | L138: =SUM($J$13:$J138) -> 1930550.45
B139: 127 | C139: =IF(Pay_Num<>"",DATE(YEAR(C138)+VLOOKUP(Interval,LoanLookup[],4,FALSE),MONTH(C138)+VLOOKUP(Interval,LoanLookup[],2,FALSE),DAY(C138)+VLOOKUP(Interval,LoanLookup[],3,FALSE)),"") -> 2024-12-10 | D139: 2685601.40 | E139: NT$29,698.01 | F139: 0 | H139: 29698.01 | I139: 18508.00 | J139: =IF(Pay_Num<>"",Beg_Bal*(Interest_Rate/VLOOKUP(Interval,LoanLookup[],5,FALSE)),"") -> NT$11,190.01 | K139: 2667093.40 | L139: =SUM($J$13:$J139) -> 1941740.45
B140: 128 | C140: =IF(Pay_Num<>"",DATE(YEAR(C139)+VLOOKUP(Interval,LoanLookup[],4,FALSE),MONTH(C139)+VLOOKUP(Interval,LoanLookup[],2,FALSE),DAY(C139)+VLOOKUP(Interval,LoanLookup[],3,FALSE)),"") -> 2025-01-10 | D140: 2667093.40 | E140: NT$29,698.01 | F140: 0 | H140: 29698.01 | I140: 18585.12 | J140: =IF(Pay_Num<>"",Beg_Bal*(Interest_Rate/VLOOKUP(Interval,LoanLookup[],5,FALSE)),"") -> NT$11,112.89 | K140: 2648508.28 | L140: =SUM($J$13:$J140) -> 1952853.34
B141: 129 | C141: =IF(Pay_Num<>"",DATE(YEAR(C140)+VLOOKUP(Interval,LoanLookup[],4,FALSE),MONTH(C140)+VLOOKUP(Interval,LoanLookup[],2,FALSE),DAY(C140)+VLOOKUP(Interval,LoanLookup[],3,FALSE)),"") -> 2025-02-10 | D141: 2648508.28 | E141: NT$29,698.01 | F141: =IF(AND(Pay_Num<>"",Sched_Pay+Scheduled_Extra_Payments<Beg_Bal),Scheduled_Extra_Payments,IF(AND(Pay_Num<>"",Beg_Bal-Sched_Pay>0),Beg_Bal-Sched_Pay,IF(Pay_Num<>"",0,""))) -> 0 | H141: =IF(AND(Pay_Num<>"",Sched_Pay+Extra_Pay<Beg_Bal),Sched_Pay+Extra_Pay,IF(Pay_Num<>"",Beg_Bal,"")) -> 29698.01 | I141: 18662.56 | J141: =IF(Pay_Num<>"",Beg_Bal*(Interest_Rate/VLOOKUP(Interval,LoanLookup[],5,FALSE)),"") -> NT$11,035.45 | K141: =IF(AND(Pay_Num<>"",Sched_Pay+Extra_Pay<Beg_Bal),Beg_Bal-Princ,IF(Pay_Num<>"",0,"")) -> 2629845.73 | L141: =SUM($J$13:$J141) -> 1963888.79
B142: =IF(Values_Entered,B141+1,"") -> 130 | C142: =IF(Pay_Num<>"",DATE(YEAR(C141)+VLOOKUP(Interval,LoanLookup[],4,FALSE),MONTH(C141)+VLOOKUP(Interval,LoanLookup[],2,FALSE),DAY(C141)+VLOOKUP(Interval,LoanLookup[],3,FALSE)),"") -> 2025-03-10 | D142: =IF(Pay_Num<>"",K141,"") -> 2629845.73 | E142: NT$29,698.01 | F142: 0 | H142: 29698.01 | I142: =IF(Pay_Num<>"",Total_Pay-Int,"") -> 18740.32 | J142: =IF(Pay_Num<>"",Beg_Bal*(Interest_Rate/VLOOKUP(Interval,LoanLookup[],5,FALSE)),"") -> NT$10,957.69 | K142: 2611105.41 | L142: =SUM($J$13:$J142) -> 1974846.48
B143: 131 | C143: =IF(Pay_Num<>"",DATE(YEAR(C142)+VLOOKUP(Interval,LoanLookup[],4,FALSE),MONTH(C142)+VLOOKUP(Interval,LoanLookup[],2,FALSE),DAY(C142)+VLOOKUP(Interval,LoanLookup[],3,FALSE)),"") -> 2025-04-10 | D143: 2611105.41 | E143: =IF(Pay_Num<>"",Scheduled_Monthly_Payment,"") -> NT$29,698.01 | F143: 0 | H143: 29698.01 | I143: 18818.40 | J143: =IF(Pay_Num<>"",Beg_Bal*(Interest_Rate/VLOOKUP(Interval,LoanLookup[],5,FALSE)),"") -> NT$10,879.61 | K143: 2592287.01 | L143: =SUM($J$13:$J143) -> 1985726.09
B144: 132 | C144: =IF(Pay_Num<>"",DATE(YEAR(C143)+VLOOKUP(Interval,LoanLookup[],4,FALSE),MONTH(C143)+VLOOKUP(Interval,LoanLookup[],2,FALSE),DAY(C143)+VLOOKUP(Interval,LoanLookup[],3,FALSE)),"") -> 2025-05-10 | D144: 2592287.01 | E144: NT$29,698.01 | F144: 0 | H144: 29698.01 | I144: 18896.81 | J144: =IF(Pay_Num<>"",Beg_Bal*(Interest_Rate/VLOOKUP(Interval,LoanLookup[],5,FALSE)),"") -> NT$10,801.20 | K144: 2573390.19 | L144: =SUM($J$13:$J144) -> 1996527.28
B145: 133 | C145: =IF(Pay_Num<>"",DATE(YEAR(C144)+VLOOKUP(Interval,LoanLookup[],4,FALSE),MONTH(C144)+VLOOKUP(Interval,LoanLookup[],2,FALSE),DAY(C144)+VLOOKUP(Interval,LoanLookup[],3,FALSE)),"") -> 2025-06-10 | D145: 2573390.19 | E145: NT$29,698.01 | F145: 0 | H145: 29698.01 | I145: 18975.55 | J145: =IF(Pay_Num<>"",Beg_Bal*(Interest_Rate/VLOOKUP(Interval,LoanLookup[],5,FALSE)),"") -> NT$10,722.46 | K145: 2554414.64 | L145: =SUM($J$13:$J145) -> 2007249.74
B146: 134 | C146: =IF(Pay_Num<>"",DATE(YEAR(C145)+VLOOKUP(Interval,LoanLookup[],4,FALSE),MONTH(C145)+VLOOKUP(Interval,LoanLookup[],2,FALSE),DAY(C145)+VLOOKUP(Interval,LoanLookup[],3,FALSE)),"") -> 2025-07-10 | D146: 2554414.64 | E146: NT$29,698.01 | F146: 0 | H146: 29698.01 | I146: 19054.61 | J146: =IF(Pay_Num<>"",Beg_Bal*(Interest_Rate/VLOOKUP(Interval,LoanLookup[],5,FALSE)),"") -> NT$10,643.39 | K146: 2535360.03 | L146: =SUM($J$13:$J146) -> 2017893.14
B147: 135 | C147: =IF(Pay_Num<>"",DATE(YEAR(C146)+VLOOKUP(Interval,LoanLookup[],4,FALSE),MONTH(C146)+VLOOKUP(Interval,LoanLookup[],2,FALSE),DAY(C146)+VLOOKUP(Interval,LoanLookup[],3,FALSE)),"") -> 2025-08-10 | D147: 2535360.03 | E147: NT$29,698.01 | F147: 0 | H147: 29698.01 | I147: 19134.01 | J147: =IF(Pay_Num<>"",Beg_Bal*(Interest_Rate/VLOOKUP(Interval,LoanLookup[],5,FALSE)),"") -> NT$10,564.00 | K147: 2516226.02 | L147: =SUM($J$13:$J147) -> 2028457.14
B148: 136 | C148: =IF(Pay_Num<>"",DATE(YEAR(C147)+VLOOKUP(Interval,LoanLookup[],4,FALSE),MONTH(C147)+VLOOKUP(Interval,LoanLookup[],2,FALSE),DAY(C147)+VLOOKUP(Interval,LoanLookup[],3,FALSE)),"") -> 2025-09-10 | D148: 2516226.02 | E148: NT$29,698.01 | F148: 0 | H148: 29698.01 | I148: 19213.73 | J148: =IF(Pay_Num<>"",Beg_Bal*(Interest_Rate/VLOOKUP(Interval,LoanLookup[],5,FALSE)),"") -> NT$10,484.28 | K148: 2497012.29 | L148: =SUM($J$13:$J148) -> 2038941.41
B149: 137 | C149: =IF(Pay_Num<>"",DATE(YEAR(C148)+VLOOKUP(Interval,LoanLookup[],4,FALSE),MONTH(C148)+VLOOKUP(Interval,LoanLookup[],2,FALSE),DAY(C148)+VLOOKUP(Interval,LoanLookup[],3,FALSE)),"") -> 2025-10-10 | D149: 2497012.29 | E149: NT$29,698.01 | F149: 0 | H149: 29698.01 | I149: 19293.79 | J149: =IF(Pay_Num<>"",Beg_Bal*(Interest_Rate/VLOOKUP(Interval,LoanLookup[],5,FALSE)),"") -> NT$10,404.22 | K149: 2477718.50 | L149: =SUM($J$13:$J149) -> 2049345.63
B150: 138 | C150: =IF(Pay_Num<>"",DATE(YEAR(C149)+VLOOKUP(Interval,LoanLookup[],4,FALSE),MONTH(C149)+VLOOKUP(Interval,LoanLookup[],2,FALSE),DAY(C149)+VLOOKUP(Interval,LoanLookup[],3,FALSE)),"") -> 2025-11-10 | D150: 2477718.50 | E150: NT$29,698.01 | F150: 0 | H150: 29698.01 | I150: 19374.18 | J150: =IF(Pay_Num<>"",Beg_Bal*(Interest_Rate/VLOOKUP(Interval,LoanLookup[],5,FALSE)),"") -> NT$10,323.83 | K150: 2458344.32 | L150: =SUM($J$13:$J150) -> 2059669.46
B151: 139 | C151: =IF(Pay_Num<>"",DATE(YEAR(C150)+VLOOKUP(Interval,LoanLookup[],4,FALSE),MONTH(C150)+VLOOKUP(Interval,LoanLookup[],2,FALSE),DAY(C150)+VLOOKUP(Interval,LoanLookup[],3,FALSE)),"") -> 2025-12-10 | D151: 2458344.32 | E151: NT$29,698.01 | F151: 0 | H151: 29698.01 | I151: 19454.91 | J151: =IF(Pay_Num<>"",Beg_Bal*(Interest_Rate/VLOOKUP(Interval,LoanLookup[],5,FALSE)),"") -> NT$10,243.10 | K151: 2438889.41 | L151: =SUM($J$13:$J151) -> 2069912.56
B152: 140 | C152: =IF(Pay_Num<>"",DATE(YEAR(C151)+VLOOKUP(Interval,LoanLookup[],4,FALSE),MONTH(C151)+VLOOKUP(Interval,LoanLookup[],2,FALSE),DAY(C151)+VLOOKUP(Interval,LoanLookup[],3,FALSE)),"") -> 2026-01-10 | D152: 2438889.41 | E152: NT$29,698.01 | F152: 0 | H152: 29698.01 | I152: 19535.97 | J152: =IF(Pay_Num<>"",Beg_Bal*(Interest_Rate/VLOOKUP(Interval,LoanLookup[],5,FALSE)),"") -> NT$10,162.04 | K152: 2419353.44 | L152: =SUM($J$13:$J152) -> 2080074.60
B153: 141 | C153: =IF(Pay_Num<>"",DATE(YEAR(C152)+VLOOKUP(Interval,LoanLookup[],4,FALSE),MONTH(C152)+VLOOKUP(Interval,LoanLookup[],2,FALSE),DAY(C152)+VLOOKUP(Interval,LoanLookup[],3,FALSE)),"") -> 2026-02-10 | D153: 2419353.44 | E153: NT$29,698.01 | F153: 0 | H153: 29698.01 | I153: 19617.37 | J153: =IF(Pay_Num<>"",Beg_Bal*(Interest_Rate/VLOOKUP(Interval,LoanLookup[],5,FALSE)),"") -> NT$10,080.64 | K153: 2399736.07 | L153: =SUM($J$13:$J153) -> 2090155.24
B154: 142 | C154: =IF(Pay_Num<>"",DATE(YEAR(C153)+VLOOKUP(Interval,LoanLookup[],4,FALSE),MONTH(C153)+VLOOKUP(Interval,LoanLookup[],2,FALSE),DAY(C153)+VLOOKUP(Interval,LoanLookup[],3,FALSE)),"") -> 2026-03-10 | D154: 2399736.07 | E154: NT$29,698.01 | F154: 0 | H154: 29698.01 | I154: 19699.11 | J154: =IF(Pay_Num<>"",Beg_Bal*(Interest_Rate/VLOOKUP(Interval,LoanLookup[],5,FALSE)),"") -> NT$9,998.90 | K154: 2380036.96 | L154: =SUM($J$13:$J154) -> 2100154.14
B155: 143 | C155: =IF(Pay_Num<>"",DATE(YEAR(C154)+VLOOKUP(Interval,LoanLookup[],4,FALSE),MONTH(C154)+VLOOKUP(Interval,LoanLookup[],2,FALSE),DAY(C154)+VLOOKUP(Interval,LoanLookup[],3,FALSE)),"") -> 2026-04-10 | D155: 2380036.96 | E155: NT$29,698.01 | F155: 0 | H155: 29698.01 | I155: 19781.19 | J155: =IF(Pay_Num<>"",Beg_Bal*(Interest_Rate/VLOOKUP(Interval,LoanLookup[],5,FALSE)),"") -> NT$9,916.82 | K155: 2360255.78 | L155: =SUM($J$13:$J155) -> 2110070.96
B156: 144 | C156: =IF(Pay_Num<>"",DATE(YEAR(C155)+VLOOKUP(Interval,LoanLookup[],4,FALSE),MONTH(C155)+VLOOKUP(Interval,LoanLookup[],2,FALSE),DAY(C155)+VLOOKUP(Interval,LoanLookup[],3,FALSE)),"") -> 2026-05-10 | D156: 2360255.78 | E156: NT$29,698.01 | F156: 0 | H156: 29698.01 | I156: 19863.61 | J156: =IF(Pay_Num<>"",Beg_Bal*(Interest_Rate/VLOOKUP(Interval,LoanLookup[],5,FALSE)),"") -> NT$9,834.40 | K156: 2340392.17 | L156: =SUM($J$13:$J156) -> 2119905.36
B157: 145 | C157: =IF(Pay_Num<>"",DATE(YEAR(C156)+VLOOKUP(Interval,LoanLookup[],4,FALSE),MONTH(C156)+VLOOKUP(Interval,LoanLookup[],2,FALSE),DAY(C156)+VLOOKUP(Interval,LoanLookup[],3,FALSE)),"") -> 2026-06-10 | D157: 2340392.17 | E157: NT$29,698.01 | F157: 0 | H157: 29698.01 | I157: 19946.37 | J157: =IF(Pay_Num<>"",Beg_Bal*(Interest_Rate/VLOOKUP(Interval,LoanLookup[],5,FALSE)),"") -> NT$9,751.63 | K157: 2320445.79 | L157: =SUM($J$13:$J157) -> 2129656.99
B158: 146 | C158: =IF(Pay_Num<>"",DATE(YEAR(C157)+VLOOKUP(Interval,LoanLookup[],4,FALSE),MONTH(C157)+VLOOKUP(Interval,LoanLookup[],2,FALSE),DAY(C157)+VLOOKUP(Interval,LoanLookup[],3,FALSE)),"") -> 2026-07-10 | D158: 2320445.79 | E158: NT$29,698.01 | F158: 0 | H158: 29698.01 | I158: 20029.48 | J158: =IF(Pay_Num<>"",Beg_Bal*(Interest_Rate/VLOOKUP(Interval,LoanLookup[],5,FALSE)),"") -> NT$9,668.52 | K158: 2300416.31 | L158: =SUM($J$13:$J158) -> 2139325.52
B159: 147 | C159: =IF(Pay_Num<>"",DATE(YEAR(C158)+VLOOKUP(Interval,LoanLookup[],4,FALSE),MONTH(C158)+VLOOKUP(Interval,LoanLookup[],2,FALSE),DAY(C158)+VLOOKUP(Interval,LoanLookup[],3,FALSE)),"") -> 2026-08-10 | D159: 2300416.31 | E159: NT$29,698.01 | F159: 0 | H159: 29698.01 | I159: 20112.94 | J159: =IF(Pay_Num<>"",Beg_Bal*(Interest_Rate/VLOOKUP(Interval,LoanLookup[],5,FALSE)),"") -> NT$9,585.07 | K159: 2280303.37 | L159: =SUM($J$13:$J159) -> 2148910.58
B160: 148 | C160: =IF(Pay_Num<>"",DATE(YEAR(C159)+VLOOKUP(Interval,LoanLookup[],4,FALSE),MONTH(C159)+VLOOKUP(Interval,LoanLookup[],2,FALSE),DAY(C159)+VLOOKUP(Interval,LoanLookup[],3,FALSE)),"") -> 2026-09-10 | D160: 2280303.37 | E160: NT$29,698.01 | F160: 0 | H160: 29698.01 | I160: 20196.74 | J160: =IF(Pay_Num<>"",Beg_Bal*(Interest_Rate/VLOOKUP(Interval,LoanLookup[],5,FALSE)),"") -> NT$9,501.26 | K160: 2260106.62 | L160: =SUM($J$13:$J160) -> 2158411.85
B161: 149 | C161: =IF(Pay_Num<>"",DATE(YEAR(C160)+VLOOKUP(Interval,LoanLookup[],4,FALSE),MONTH(C160)+VLOOKUP(Interval,LoanLookup[],2,FALSE),DAY(C160)+VLOOKUP(Interval,LoanLookup[],3,FALSE)),"") -> 2026-10-10 | D161: 2260106.62 | E161: NT$29,698.01 | F161: 0 | H161: 29698.01 | I161: 20280.90 | J161: =IF(Pay_Num<>"",Beg_Bal*(Interest_Rate/VLOOKUP(Interval,LoanLookup[],5,FALSE)),"") -> NT$9,417.11 | K161: 2239825.73 | L161: =SUM($J$13:$J161) -> 2167828.96
B162: 150 | C162: =IF(Pay_Num<>"",DATE(YEAR(C161)+VLOOKUP(Interval,LoanLookup[],4,FALSE),MONTH(C161)+VLOOKUP(Interval,LoanLookup[],2,FALSE),DAY(C161)+VLOOKUP(Interval,LoanLookup[],3,FALSE)),"") -> 2026-11-10 | D162: 2239825.73 | E162: NT$29,698.01 | F162: 0 | H162: 29698.01 | I162: 20365.40 | J162: =IF(Pay_Num<>"",Beg_Bal*(Interest_Rate/VLOOKUP(Interval,LoanLookup[],5,FALSE)),"") -> NT$9,332.61 | K162: 2219460.33 | L162: =SUM($J$13:$J162) -> 2177161.57
B163: 151 | C163: =IF(Pay_Num<>"",DATE(YEAR(C162)+VLOOKUP(Interval,LoanLookup[],4,FALSE),MONTH(C162)+VLOOKUP(Interval,LoanLookup[],2,FALSE),DAY(C162)+VLOOKUP(Interval,LoanLookup[],3,FALSE)),"") -> 2026-12-10 | D163: 2219460.33 | E163: NT$29,698.01 | F163: 0 | H163: 29698.01 | I163: 20450.26 | J163: =IF(Pay_Num<>"",Beg_Bal*(Interest_Rate/VLOOKUP(Interval,LoanLookup[],5,FALSE)),"") -> NT$9,247.75 | K163: 2199010.07 | L163: =SUM($J$13:$J163) -> 2186409.32
B164: 152 | C164: =IF(Pay_Num<>"",DATE(YEAR(C163)+VLOOKUP(Interval,LoanLookup[],4,FALSE),MONTH(C163)+VLOOKUP(Interval,LoanLookup[],2,FALSE),DAY(C163)+VLOOKUP(Interval,LoanLookup[],3,FALSE)),"") -> 2027-01-10 | D164: 2199010.07 | E164: NT$29,698.01 | F164: 0 | H164: 29698.01 | I164: 20535.47 | J164: =IF(Pay_Num<>"",Beg_Bal*(Interest_Rate/VLOOKUP(Interval,LoanLookup[],5,FALSE)),"") -> NT$9,162.54 | K164: 2178474.60 | L164: =SUM($J$13:$J164) -> 2195571.86
B165: 153 | C165: =IF(Pay_Num<>"",DATE(YEAR(C164)+VLOOKUP(Interval,LoanLookup[],4,FALSE),MONTH(C164)+VLOOKUP(Interval,LoanLookup[],2,FALSE),DAY(C164)+VLOOKUP(Interval,LoanLookup[],3,FALSE)),"") -> 2027-02-10 | D165: 2178474.60 | E165: NT$29,698.01 | F165: 0 | H165: 29698.01 | I165: 20621.03 | J165: =IF(Pay_Num<>"",Beg_Bal*(Interest_Rate/VLOOKUP(Interval,LoanLookup[],5,FALSE)),"") -> NT$9,076.98 | K165: 2157853.57 | L165: =SUM($J$13:$J165) -> 2204648.84
B166: 154 | C166: =IF(Pay_Num<>"",DATE(YEAR(C165)+VLOOKUP(Interval,LoanLookup[],4,FALSE),MONTH(C165)+VLOOKUP(Interval,LoanLookup[],2,FALSE),DAY(C165)+VLOOKUP(Interval,LoanLookup[],3,FALSE)),"") -> 2027-03-10 | D166: 2157853.57 | E166: NT$29,698.01 | F166: 0 | H166: 29698.01 | I166: 20706.95 | J166: =IF(Pay_Num<>"",Beg_Bal*(Interest_Rate/VLOOKUP(Interval,LoanLookup[],5,FALSE)),"") -> NT$8,991.06 | K166: 2137146.62 | L166: =SUM($J$13:$J166) -> 2213639.89
B167: 155 | C167: =IF(Pay_Num<>"",DATE(YEAR(C166)+VLOOKUP(Interval,LoanLookup[],4,FALSE),MONTH(C166)+VLOOKUP(Interval,LoanLookup[],2,FALSE),DAY(C166)+VLOOKUP(Interval,LoanLookup[],3,FALSE)),"") -> 2027-04-10 | D167: 2137146.62 | E167: NT$29,698.01 | F167: 0 | H167: 29698.01 | I167: 20793.23 | J167: =IF(Pay_Num<>"",Beg_Bal*(Interest_Rate/VLOOKUP(Interval,LoanLookup[],5,FALSE)),"") -> NT$8,904.78 | K167: 2116353.39 | L167: =SUM($J$13:$J167) -> 2222544.67
B168: 156 | C168: =IF(Pay_Num<>"",DATE(YEAR(C167)+VLOOKUP(Interval,LoanLookup[],4,FALSE),MONTH(C167)+VLOOKUP(Interval,LoanLookup[],2,FALSE),DAY(C167)+VLOOKUP(Interval,LoanLookup[],3,FALSE)),"") -> 2027-05-10 | D168: 2116353.39 | E168: NT$29,698.01 | F168: 0 | H168: 29698.01 | I168: 20879.87 | J168: =IF(Pay_Num<>"",Beg_Bal*(Interest_Rate/VLOOKUP(Interval,LoanLookup[],5,FALSE)),"") -> NT$8,818.14 | K168: 2095473.52 | L168: =SUM($J$13:$J168) -> 2231362.81
B169: 157 | C169: =IF(Pay_Num<>"",DATE(YEAR(C168)+VLOOKUP(Interval,LoanLookup[],4,FALSE),MONTH(C168)+VLOOKUP(Interval,LoanLookup[],2,FALSE),DAY(C168)+VLOOKUP(Interval,LoanLookup[],3,FALSE)),"") -> 2027-06-10 | D169: 2095473.52 | E169: NT$29,698.01 | F169: 0 | H169: 29698.01 | I169: 20966.87 | J169: =IF(Pay_Num<>"",Beg_Bal*(Interest_Rate/VLOOKUP(Interval,LoanLookup[],5,FALSE)),"") -> NT$8,731.14 | K169: 2074506.65 | L169: =SUM($J$13:$J169) -> 2240093.95
B170: 158 | C170: =IF(Pay_Num<>"",DATE(YEAR(C169)+VLOOKUP(Interval,LoanLookup[],4,FALSE),MONTH(C169)+VLOOKUP(Interval,LoanLookup[],2,FALSE),DAY(C169)+VLOOKUP(Interval,LoanLookup[],3,FALSE)),"") -> 2027-07-10 | D170: 2074506.65 | E170: NT$29,698.01 | F170: 0 | H170: 29698.01 | I170: 21054.23 | J170: =IF(Pay_Num<>"",Beg_Bal*(Interest_Rate/VLOOKUP(Interval,LoanLookup[],5,FALSE)),"") -> NT$8,643.78 | K170: 2053452.42 | L170: =SUM($J$13:$J170) -> 2248737.73
B171: 159 | C171: =IF(Pay_Num<>"",DATE(YEAR(C170)+VLOOKUP(Interval,LoanLookup[],4,FALSE),MONTH(C170)+VLOOKUP(Interval,LoanLookup[],2,FALSE),DAY(C170)+VLOOKUP(Interval,LoanLookup[],3,FALSE)),"") -> 2027-08-10 | D171: 2053452.42 | E171: NT$29,698.01 | F171: 0 | H171: 29698.01 | I171: 21141.96 | J171: =IF(Pay_Num<>"",Beg_Bal*(Interest_Rate/VLOOKUP(Interval,LoanLookup[],5,FALSE)),"") -> NT$8,556.05 | K171: 2032310.46 | L171: =SUM($J$13:$J171) -> 2257293.78
B172: 160 | C172: =IF(Pay_Num<>"",DATE(YEAR(C171)+VLOOKUP(Interval,LoanLookup[],4,FALSE),MONTH(C171)+VLOOKUP(Interval,LoanLookup[],2,FALSE),DAY(C171)+VLOOKUP(Interval,LoanLookup[],3,FALSE)),"") -> 2027-09-10 | D172: 2032310.46 | E172: NT$29,698.01 | F172: 0 | H172: 29698.01 | I172: 21230.05 | J172: =IF(Pay_Num<>"",Beg_Bal*(Interest_Rate/VLOOKUP(Interval,LoanLookup[],5,FALSE)),"") -> NT$8,467.96 | K172: 2011080.42 | L172: =SUM($J$13:$J172) -> 2265761.74
B173: 161 | C173: =IF(Pay_Num<>"",DATE(YEAR(C172)+VLOOKUP(Interval,LoanLookup[],4,FALSE),MONTH(C172)+VLOOKUP(Interval,LoanLookup[],2,FALSE),DAY(C172)+VLOOKUP(Interval,LoanLookup[],3,FALSE)),"") -> 2027-10-10 | D173: 2011080.42 | E173: NT$29,698.01 | F173: 0 | H173: 29698.01 | I173: 21318.51 | J173: =IF(Pay_Num<>"",Beg_Bal*(Interest_Rate/VLOOKUP(Interval,LoanLookup[],5,FALSE)),"") -> NT$8,379.50 | K173: 1989761.91 | L173: =SUM($J$13:$J173) -> 2274141.24
B174: 162 | C174: =IF(Pay_Num<>"",DATE(YEAR(C173)+VLOOKUP(Interval,LoanLookup[],4,FALSE),MONTH(C173)+VLOOKUP(Interval,LoanLookup[],2,FALSE),DAY(C173)+VLOOKUP(Interval,LoanLookup[],3,FALSE)),"") -> 2027-11-10 | D174: 1989761.91 | E174: NT$29,698.01 | F174: 0 | H174: 29698.01 | I174: 21407.33 | J174: =IF(Pay_Num<>"",Beg_Bal*(Interest_Rate/VLOOKUP(Interval,LoanLookup[],5,FALSE)),"") -> NT$8,290.67 | K174: 1968354.58 | L174: =SUM($J$13:$J174) -> 2282431.92
B175: 163 | C175: =IF(Pay_Num<>"",DATE(YEAR(C174)+VLOOKUP(Interval,LoanLookup[],4,FALSE),MONTH(C174)+VLOOKUP(Interval,LoanLookup[],2,FALSE),DAY(C174)+VLOOKUP(Interval,LoanLookup[],3,FALSE)),"") -> 2027-12-10 | D175: 1968354.58 | E175: NT$29,698.01 | F175: 0 | H175: 29698.01 | I175: 21496.53 | J175: =IF(Pay_Num<>"",Beg_Bal*(Interest_Rate/VLOOKUP(Interval,LoanLookup[],5,FALSE)),"") -> NT$8,201.48 | K175: 1946858.05 | L175: =SUM($J$13:$J175) -> 2290633.39
B176: 164 | C176: =IF(Pay_Num<>"",DATE(YEAR(C175)+VLOOKUP(Interval,LoanLookup[],4,FALSE),MONTH(C175)+VLOOKUP(Interval,LoanLookup[],2,FALSE),DAY(C175)+VLOOKUP(Interval,LoanLookup[],3,FALSE)),"") -> 2028-01-10 | D176: 1946858.05 | E176: NT$29,698.01 | F176: 0 | H176: 29698.01 | I176: 21586.10 | J176: =IF(Pay_Num<>"",Beg_Bal*(Interest_Rate/VLOOKUP(Interval,LoanLookup[],5,FALSE)),"") -> NT$8,111.91 | K176: 1925271.95 | L176: =SUM($J$13:$J176) -> 2298745.30
B177: 165 | C177: =IF(Pay_Num<>"",DATE(YEAR(C176)+VLOOKUP(Interval,LoanLookup[],4,FALSE),MONTH(C176)+VLOOKUP(Interval,LoanLookup[],2,FALSE),DAY(C176)+VLOOKUP(Interval,LoanLookup[],3,FALSE)),"") -> 2028-02-10 | D177: 1925271.95 | E177: NT$29,698.01 | F177: 0 | H177: 29698.01 | I177: 21676.04 | J177: =IF(Pay_Num<>"",Beg_Bal*(Interest_Rate/VLOOKUP(Interval,LoanLookup[],5,FALSE)),"") -> NT$8,021.97 | K177: 1903595.90 | L177: =SUM($J$13:$J177) -> 2306767.27
B178: 166 | C178: =IF(Pay_Num<>"",DATE(YEAR(C177)+VLOOKUP(Interval,LoanLookup[],4,FALSE),MONTH(C177)+VLOOKUP(Interval,LoanLookup[],2,FALSE),DAY(C177)+VLOOKUP(Interval,LoanLookup[],3,FALSE)),"") -> 2028-03-10 | D178: 1903595.90 | E178: NT$29,698.01 | F178: 0 | H178: 29698.01 | I178: 21766.36 | J178: =IF(Pay_Num<>"",Beg_Bal*(Interest_Rate/VLOOKUP(Interval,LoanLookup[],5,FALSE)),"") -> NT$7,931.65 | K178: 1881829.55 | L178: =SUM($J$13:$J178) -> 2314698.92
B179: 167 | C179: =IF(Pay_Num<>"",DATE(YEAR(C178)+VLOOKUP(Interval,LoanLookup[],4,FALSE),MONTH(C178)+VLOOKUP(Interval,LoanLookup[],2,FALSE),DAY(C178)+VLOOKUP(Interval,LoanLookup[],3,FALSE)),"") -> 2028-04-10 | D179: 1881829.55 | E179: NT$29,698.01 | F179: 0 | H179: 29698.01 | I179: 21857.05 | J179: =IF(Pay_Num<>"",Beg_Bal*(Interest_Rate/VLOOKUP(Interval,LoanLookup[],5,FALSE)),"") -> NT$7,840.96 | K179: 1859972.49 | L179: =SUM($J$13:$J179) -> 2322539.87
B180: 168 | C180: =IF(Pay_Num<>"",DATE(YEAR(C179)+VLOOKUP(Interval,LoanLookup[],4,FALSE),MONTH(C179)+VLOOKUP(Interval,LoanLookup[],2,FALSE),DAY(C179)+VLOOKUP(Interval,LoanLookup[],3,FALSE)),"") -> 2028-05-10 | D180: 1859972.49 | E180: NT$29,698.01 | F180: 0 | H180: 29698.01 | I180: 21948.12 | J180: =IF(Pay_Num<>"",Beg_Bal*(Interest_Rate/VLOOKUP(Interval,LoanLookup[],5,FALSE)),"") -> NT$7,749.89 | K180: 1838024.37 | L180: =SUM($J$13:$J180) -> 2330289.76
B181: 169 | C181: =IF(Pay_Num<>"",DATE(YEAR(C180)+VLOOKUP(Interval,LoanLookup[],4,FALSE),MONTH(C180)+VLOOKUP(Interval,LoanLookup[],2,FALSE),DAY(C180)+VLOOKUP(Interval,LoanLookup[],3,FALSE)),"") -> 2028-06-10 | D181: 1838024.37 | E181: NT$29,698.01 | F181: 0 | H181: 29698.01 | I181: 22039.57 | J181: =IF(Pay_Num<>"",Beg_Bal*(Interest_Rate/VLOOKUP(Interval,LoanLookup[],5,FALSE)),"") -> NT$7,658.43 | K181: 1815984.80 | L181: =SUM($J$13:$J181) -> 2337948.19
B182: 170 | C182: =IF(Pay_Num<>"",DATE(YEAR(C181)+VLOOKUP(Interval,LoanLookup[],4,FALSE),MONTH(C181)+VLOOKUP(Interval,LoanLookup[],2,FALSE),DAY(C181)+VLOOKUP(Interval,LoanLookup[],3,FALSE)),"") -> 2028-07-10 | D182: 1815984.80 | E182: NT$29,698.01 | F182: 0 | H182: 29698.01 | I182: 22131.40 | J182: =IF(Pay_Num<>"",Beg_Bal*(Interest_Rate/VLOOKUP(Interval,LoanLookup[],5,FALSE)),"") -> NT$7,566.60 | K182: 1793853.39 | L182: =SUM($J$13:$J182) -> 2345514.80
B183: 171 | C183: =IF(Pay_Num<>"",DATE(YEAR(C182)+VLOOKUP(Interval,LoanLookup[],4,FALSE),MONTH(C182)+VLOOKUP(Interval,LoanLookup[],2,FALSE),DAY(C182)+VLOOKUP(Interval,LoanLookup[],3,FALSE)),"") -> 2028-08-10 | D183: 1793853.39 | E183: NT$29,698.01 | F183: 0 | H183: 29698.01 | I183: 22223.62 | J183: =IF(Pay_Num<>"",Beg_Bal*(Interest_Rate/VLOOKUP(Interval,LoanLookup[],5,FALSE)),"") -> NT$7,474.39 | K183: 1771629.77 | L183: =SUM($J$13:$J183) -> 2352989.19
B184: 172 | C184: =IF(Pay_Num<>"",DATE(YEAR(C183)+VLOOKUP(Interval,LoanLookup[],4,FALSE),MONTH(C183)+VLOOKUP(Interval,LoanLookup[],2,FALSE),DAY(C183)+VLOOKUP(Interval,LoanLookup[],3,FALSE)),"") -> 2028-09-10 | D184: 1771629.77 | E184: NT$29,698.01 | F184: 0 | H184: 29698.01 | I184: 22316.22 | J184: =IF(Pay_Num<>"",Beg_Bal*(Interest_Rate/VLOOKUP(Interval,LoanLookup[],5,FALSE)),"") -> NT$7,381.79 | K184: 1749313.56 | L184: =SUM($J$13:$J184) -> 2360370.98
B185: 173 | C185: =IF(Pay_Num<>"",DATE(YEAR(C184)+VLOOKUP(Interval,LoanLookup[],4,FALSE),MONTH(C184)+VLOOKUP(Interval,LoanLookup[],2,FALSE),DAY(C184)+VLOOKUP(Interval,LoanLookup[],3,FALSE)),"") -> 2028-10-10 | D185: 1749313.56 | E185: NT$29,698.01 | F185: 0 | H185: 29698.01 | I185: 22409.20 | J185: =IF(Pay_Num<>"",Beg_Bal*(Interest_Rate/VLOOKUP(Interval,LoanLookup[],5,FALSE)),"") -> NT$7,288.81 | K185: 1726904.35 | L185: =SUM($J$13:$J185) -> 2367659.78
B186: 174 | C186: =IF(Pay_Num<>"",DATE(YEAR(C185)+VLOOKUP(Interval,LoanLookup[],4,FALSE),MONTH(C185)+VLOOKUP(Interval,LoanLookup[],2,FALSE),DAY(C185)+VLOOKUP(Interval,LoanLookup[],3,FALSE)),"") -> 2028-11-10 | D186: 1726904.35 | E186: NT$29,698.01 | F186: 0 | H186: 29698.01 | I186: 22502.57 | J186: =IF(Pay_Num<>"",Beg_Bal*(Interest_Rate/VLOOKUP(Interval,LoanLookup[],5,FALSE)),"") -> NT$7,195.43 | K186: 1704401.78 | L186: =SUM($J$13:$J186) -> 2374855.22
B187: 175 | C187: =IF(Pay_Num<>"",DATE(YEAR(C186)+VLOOKUP(Interval,LoanLookup[],4,FALSE),MONTH(C186)+VLOOKUP(Interval,LoanLookup[],2,FALSE),DAY(C186)+VLOOKUP(Interval,LoanLookup[],3,FALSE)),"") -> 2028-12-10 | D187: 1704401.78 | E187: NT$29,698.01 | F187: 0 | H187: 29698.01 | I187: 22596.33 | J187: =IF(Pay_Num<>"",Beg_Bal*(Interest_Rate/VLOOKUP(Interval,LoanLookup[],5,FALSE)),"") -> NT$7,101.67 | K187: 1681805.45 | L187: =SUM($J$13:$J187) -> 2381956.89
B188: 176 | C188: =IF(Pay_Num<>"",DATE(YEAR(C187)+VLOOKUP(Interval,LoanLookup[],4,FALSE),MONTH(C187)+VLOOKUP(Interval,LoanLookup[],2,FALSE),DAY(C187)+VLOOKUP(Interval,LoanLookup[],3,FALSE)),"") -> 2029-01-10 | D188: 1681805.45 | E188: NT$29,698.01 | F188: 0 | H188: 29698.01 | I188: 22690.49 | J188: =IF(Pay_Num<>"",Beg_Bal*(Interest_Rate/VLOOKUP(Interval,LoanLookup[],5,FALSE)),"") -> NT$7,007.52 | K188: 1659114.96 | L188: =SUM($J$13:$J188) -> 2388964.42
B189: 177 | C189: =IF(Pay_Num<>"",DATE(YEAR(C188)+VLOOKUP(Interval,LoanLookup[],4,FALSE),MONTH(C188)+VLOOKUP(Interval,LoanLookup[],2,FALSE),DAY(C188)+VLOOKUP(Interval,LoanLookup[],3,FALSE)),"") -> 2029-02-10 | D189: 1659114.96 | E189: NT$29,698.01 | F189: 0 | H189: 29698.01 | I189: 22785.03 | J189: =IF(Pay_Num<>"",Beg_Bal*(Interest_Rate/VLOOKUP(Interval,LoanLookup[],5,FALSE)),"") -> NT$6,912.98 | K189: 1636329.93 | L189: =SUM($J$13:$J189) -> 2395877.39
B190: 178 | C190: =IF(Pay_Num<>"",DATE(YEAR(C189)+VLOOKUP(Interval,LoanLookup[],4,FALSE),MONTH(C189)+VLOOKUP(Interval,LoanLookup[],2,FALSE),DAY(C189)+VLOOKUP(Interval,LoanLookup[],3,FALSE)),"") -> 2029-03-10 | D190: 1636329.93 | E190: NT$29,698.01 | F190: 0 | H190: 29698.01 | I190: 22879.97 | J190: =IF(Pay_Num<>"",Beg_Bal*(Interest_Rate/VLOOKUP(Interval,LoanLookup[],5,FALSE)),"") -> NT$6,818.04 | K190: 1613449.96 | L190: =SUM($J$13:$J190) -> 2402695.44
B191: 179 | C191: =IF(Pay_Num<>"",DATE(YEAR(C190)+VLOOKUP(Interval,LoanLookup[],4,FALSE),MONTH(C190)+VLOOKUP(Interval,LoanLookup[],2,FALSE),DAY(C190)+VLOOKUP(Interval,LoanLookup[],3,FALSE)),"") -> 2029-04-10 | D191: 1613449.96 | E191: NT$29,698.01 | F191: 0 | H191: 29698.01 | I191: 22975.30 | J191: =IF(Pay_Num<>"",Beg_Bal*(Interest_Rate/VLOOKUP(Interval,LoanLookup[],5,FALSE)),"") -> NT$6,722.71 | K191: 1590474.66 | L191: =SUM($J$13:$J191) -> 2409418.14
B192: 180 | C192: =IF(Pay_Num<>"",DATE(YEAR(C191)+VLOOKUP(Interval,LoanLookup[],4,FALSE),MONTH(C191)+VLOOKUP(Interval,LoanLookup[],2,FALSE),DAY(C191)+VLOOKUP(Interval,LoanLookup[],3,FALSE)),"") -> 2029-05-10 | D192: 1590474.66 | E192: NT$29,698.01 | F192: 0 | H192: 29698.01 | I192: 23071.03 | J192: =IF(Pay_Num<>"",Beg_Bal*(Interest_Rate/VLOOKUP(Interval,LoanLookup[],5,FALSE)),"") -> NT$6,626.98 | K192: 1567403.63 | L192: =SUM($J$13:$J192) -> 2416045.12
B193: 181 | C193: =IF(Pay_Num<>"",DATE(YEAR(C192)+VLOOKUP(Interval,LoanLookup[],4,FALSE),MONTH(C192)+VLOOKUP(Interval,LoanLookup[],2,FALSE),DAY(C192)+VLOOKUP(Interval,LoanLookup[],3,FALSE)),"") -> 2029-06-10 | D193: 1567403.63 | E193: NT$29,698.01 | F193: 0 | H193: 29698.01 | I193: 23167.16 | J193: =IF(Pay_Num<>"",Beg_Bal*(Interest_Rate/VLOOKUP(Interval,LoanLookup[],5,FALSE)),"") -> NT$6,530.85 | K193: 1544236.47 | L193: =SUM($J$13:$J193) -> 2422575.97
B194: 182 | C194: =IF(Pay_Num<>"",DATE(YEAR(C193)+VLOOKUP(Interval,LoanLookup[],4,FALSE),MONTH(C193)+VLOOKUP(Interval,LoanLookup[],2,FALSE),DAY(C193)+VLOOKUP(Interval,LoanLookup[],3,FALSE)),"") -> 2029-07-10 | D194: 1544236.47 | E194: NT$29,698.01 | F194: 0 | H194: 29698.01 | I194: 23263.69 | J194: =IF(Pay_Num<>"",Beg_Bal*(Interest_Rate/VLOOKUP(Interval,LoanLookup[],5,FALSE)),"") -> NT$6,434.32 | K194: 1520972.78 | L194: =SUM($J$13:$J194) -> 2429010.29
B195: 183 | C195: =IF(Pay_Num<>"",DATE(YEAR(C194)+VLOOKUP(Interval,LoanLookup[],4,FALSE),MONTH(C194)+VLOOKUP(Interval,LoanLookup[],2,FALSE),DAY(C194)+VLOOKUP(Interval,LoanLookup[],3,FALSE)),"") -> 2029-08-10 | D195: 1520972.78 | E195: NT$29,698.01 | F195: 0 | H195: 29698.01 | I195: 23360.62 | J195: =IF(Pay_Num<>"",Beg_Bal*(Interest_Rate/VLOOKUP(Interval,LoanLookup[],5,FALSE)),"") -> NT$6,337.39 | K195: 1497612.16 | L195: =SUM($J$13:$J195) -> 2435347.68
B196: 184 | C196: =IF(Pay_Num<>"",DATE(YEAR(C195)+VLOOKUP(Interval,LoanLookup[],4,FALSE),MONTH(C195)+VLOOKUP(Interval,LoanLookup[],2,FALSE),DAY(C195)+VLOOKUP(Interval,LoanLookup[],3,FALSE)),"") -> 2029-09-10 | D196: 1497612.16 | E196: NT$29,698.01 | F196: 0 | H196: 29698.01 | I196: 23457.96 | J196: =IF(Pay_Num<>"",Beg_Bal*(Interest_Rate/VLOOKUP(Interval,LoanLookup[],5,FALSE)),"") -> NT$6,240.05 | K196: 1474154.21 | L196: =SUM($J$13:$J196) -> 2441587.73
B197: 185 | C197: =IF(Pay_Num<>"",DATE(YEAR(C196)+VLOOKUP(Interval,LoanLookup[],4,FALSE),MONTH(C196)+VLOOKUP(Interval,LoanLookup[],2,FALSE),DAY(C196)+VLOOKUP(Interval,LoanLookup[],3,FALSE)),"") -> 2029-10-10 | D197: 1474154.21 | E197: NT$29,698.01 | F197: 0 | H197: 29698.01 | I197: 23555.70 | J197: =IF(Pay_Num<>"",Beg_Bal*(Interest_Rate/VLOOKUP(Interval,LoanLookup[],5,FALSE)),"") -> NT$6,142.31 | K197: 1450598.51 | L197: =SUM($J$13:$J197) -> 2447730.04
B198: 186 | C198: =IF(Pay_Num<>"",DATE(YEAR(C197)+VLOOKUP(Interval,LoanLookup[],4,FALSE),MONTH(C197)+VLOOKUP(Interval,LoanLookup[],2,FALSE),DAY(C197)+VLOOKUP(Interval,LoanLookup[],3,FALSE)),"") -> 2029-11-10 | D198: 1450598.51 | E198: NT$29,698.01 | F198: 0 | H198: 29698.01 | I198: 23653.85 | J198: =IF(Pay_Num<>"",Beg_Bal*(Interest_Rate/VLOOKUP(Interval,LoanLookup[],5,FALSE)),"") -> NT$6,044.16 | K198: 1426944.66 | L198: =SUM($J$13:$J198) -> 2453774.20
B199: 187 | C199: =IF(Pay_Num<>"",DATE(YEAR(C198)+VLOOKUP(Interval,LoanLookup[],4,FALSE),MONTH(C198)+VLOOKUP(Interval,LoanLookup[],2,FALSE),DAY(C198)+VLOOKUP(Interval,LoanLookup[],3,FALSE)),"") -> 2029-12-10 | D199: 1426944.66 | E199: NT$29,698.01 | F199: 0 | H199: 29698.01 | I199: 23752.41 | J199: =IF(Pay_Num<>"",Beg_Bal*(Interest_Rate/VLOOKUP(Interval,LoanLookup[],5,FALSE)),"") -> NT$5,945.60 | K199: 1403192.25 | L199: =SUM($J$13:$J199) -> 2459719.80
B200: 188 | C200: =IF(Pay_Num<>"",DATE(YEAR(C199)+VLOOKUP(Interval,LoanLookup[],4,FALSE),MONTH(C199)+VLOOKUP(Interval,LoanLookup[],2,FALSE),DAY(C199)+VLOOKUP(Interval,LoanLookup[],3,FALSE)),"") -> 2030-01-10 | D200: 1403192.25 | E200: NT$29,698.01 | F200: 0 | H200: 29698.01 | I200: 23851.37 | J200: =IF(Pay_Num<>"",Beg_Bal*(Interest_Rate/VLOOKUP(Interval,LoanLookup[],5,FALSE)),"") -> NT$5,846.63 | K200: 1379340.88 | L200: =SUM($J$13:$J200) -> 2465566.43
B201: 189 | C201: =IF(Pay_Num<>"",DATE(YEAR(C200)+VLOOKUP(Interval,LoanLookup[],4,FALSE),MONTH(C200)+VLOOKUP(Interval,LoanLookup[],2,FALSE),DAY(C200)+VLOOKUP(Interval,LoanLookup[],3,FALSE)),"") -> 2030-02-10 | D201: 1379340.88 | E201: NT$29,698.01 | F201: 0 | H201: 29698.01 | I201: 23950.75 | J201: =IF(Pay_Num<>"",Beg_Bal*(Interest_Rate/VLOOKUP(Interval,LoanLookup[],5,FALSE)),"") -> NT$5,747.25 | K201: 1355390.12 | L201: =SUM($J$13:$J201) -> 2471313.69
B202: 190 | C202: =IF(Pay_Num<>"",DATE(YEAR(C201)+VLOOKUP(Interval,LoanLookup[],4,FALSE),MONTH(C201)+VLOOKUP(Interval,LoanLookup[],2,FALSE),DAY(C201)+VLOOKUP(Interval,LoanLookup[],3,FALSE)),"") -> 2030-03-10 | D202: 1355390.12 | E202: NT$29,698.01 | F202: 0 | H202: 29698.01 | I202: 24050.55 | J202: =IF(Pay_Num<>"",Beg_Bal*(Interest_Rate/VLOOKUP(Interval,LoanLookup[],5,FALSE)),"") -> NT$5,647.46 | K202: 1331339.58 | L202: =SUM($J$13:$J202) -> 2476961.15
B203: 191 | C203: =IF(Pay_Num<>"",DATE(YEAR(C202)+VLOOKUP(Interval,LoanLookup[],4,FALSE),MONTH(C202)+VLOOKUP(Interval,LoanLookup[],2,FALSE),DAY(C202)+VLOOKUP(Interval,LoanLookup[],3,FALSE)),"") -> 2030-04-10 | D203: 1331339.58 | E203: NT$29,698.01 | F203: 0 | H203: 29698.01 | I203: 24150.76 | J203: =IF(Pay_Num<>"",Beg_Bal*(Interest_Rate/VLOOKUP(Interval,LoanLookup[],5,FALSE)),"") -> NT$5,547.25 | K203: 1307188.82 | L203: =SUM($J$13:$J203) -> 2482508.39
... 529 more rows

Sheet 貸款計算工具資料
B2: 貸款計算工具資料
B3: 本工作表所存放的資料係用於貸款計算，以及填入下拉式清單。變更其中的資訊可能會導致貸款付款計算錯誤。
B4: 付款頻率查閱
B5: 頻率 | C5: 月間隔 | D5: 日間隔 | E5: 年間隔 | F5: 每年付款次數
B6: 月繳兩次 | C6: 0 | D6: 15 | E6: 0 | F6: 24
B7: 月繳 | C7: 1 | D7: 0 | E7: 0 | F7: 12
B8: 季繳 | C8: 4 | D8: 0 | E8: 0 | F8: 4
B9: 年繳 | C9: 0 | D9: 0 | E9: 1 | F9: 1
